{"text_format":"1","workbook":"xlsx","n_sheets":6,"sheets":["Lehm ja ratsiooni tingimused","Söödad","Kontsentratsioonimäärad","Optimaalne ratsioon","Tabel1","Tehniline"],"not_rendered":{"charts":0,"images":2,"macros":1,"external_links":0,"defined_names":212,"comments":2,"pivot_tables":0},"unopened":[],"bounds":{"document_bytes":16777216,"sheet_cells":100000,"rows_first":2000,"rows_last":500,"rows_between":2000,"halvings":0,"cell_chars":16384,"cell_head_chars":4096},"cells_cut":0,"cells_raw":0,"read":"whole","date_system":"1900"}

{"sheet":"Lehm ja ratsiooni tingimused","index":0,"n_rows":44,"n_cols":4,"rows_kept":44,"cut":false,"hidden":false,"merged":[]}
[]
[null,"Piimaklaster MTÜ, Söötmiskulude optimeerimise mudel 2.0"]
[]
[]
[null,null,"Piimalehm"]
[]
[null,null,"Kehamass, kg",650]
[null,null,"Piimatoodang, kg/päev","20"]
[null,null,"Laktatsiooniperioodi etapp/kinnisperiood","0…30 lüpsipäev"]
[null,null,"Sööda kuivaine tarbimine, kg/päev",{"$f":"Tehniline!D10","v":13.559803790000002}]
[null,null,"Söömus, % kehamassist",{"$f":"D10/D7","v":2.0861236600000003E-2}]
[]
[]
[]
[null,null,"Söödaratsiooni tingimused"]
[]
[null,null,"Silo"]
[null,null,"Maksimaalne rohu- ja maisisilo kogus päevas, kg",50]
[null,null,"Minimaalne maisisilo osatähtsus kogu silokogusest, %",0]
[null,null,"Maksimaalne maisisilo osatähtsus kogu silokogusest, %",1]
[null,null,"Kui ratsioonis on korraga kaks või rohkem rohusilo, siis neist igaühe minimaalne osakaal, %",0]
[]
[null,null,"Hein ja põhk"]
[null,null,"Maksimaalne heina kogus päevas, kg",1]
[null,null,"Maksimaalne põhu kogus päevas, kg",0.5]
[]
[null,null,"Rapsikook ja -šrott"]
[null,null,"Maksimaalne rapsikoogi ja -šroti kogus päevas, kg",5]
[]
[null,null,"Teravili ja jahu"]
[null,null,"Maksimaalne teravilja, jahu ja õlikoogi kogus päevas, kg",15]
[null,null,"Maksimaalne nisu osatähtsus teravilja ja jahude kogusest, %",0.5]
[null,null,"Kui ratsioonis on korraga kaks või rohkem teravilja, siis neist igaühe minimaalne osakaal, %",0]
[]
[null,null,"Kaitstud rasv"]
[null,null,"Maksimaalne kaitstud rasva kogus päevas, kg",0.2]
[]
[null,null,"Mineraalid"]
[null,null,"Maksimaalne mineraalainete kogus päevas, kg",0.2]
[null,null,"Maksimaalne lubjakivi kogus päevas, kg",0.25]
[]
[null,null,"Lisasööt"]
[null,null,"Lisasööt 1, minmaalne kogus päevas, kg",2]
[null,null,"Lisasööt 2, minimaalne kogus päevas, kg",0]

{"sheet":"Söödad","index":1,"n_rows":84,"n_cols":72,"rows_kept":84,"cut":false,"hidden":false,"merged":[]}
["valik",null,"Söödad","Hind, €/kg","KA,%","ME, MJ/kg KA","Toorkiud, g/kg KA","MP, g/kg KA","VPB, g/kg KA","VPB, g, max","Ca, g/kg KA","Ca,  g, max","P, g/kg KA","(Toor) proteiin, g/kg KA","Vaba - reserveering","Tärklis+suhkur, g/kg KA","ADF, g/kg KA","NDF, g/kg KA","silo","silo max%","hein","põhk","jahud","jahud%","nisu max","õlikoogid","panto","mineraal","lubjakivi","maisisilo min","Kaitstud rasv max","Lisasööt1","Lisasööt2","rohusilo max %","rohusilo max %","rohusilo max %","rohusilo max %","rohusilo max %","rohusilo max %","rohusilo max %","rohusilo max %","rohusilo max %","rohusilo max %","rohusilo max %","rohusilo max %","rohusilo max %","Vesi","teravilja max%","teravilja max%","teravilja max%","teravilja max%","teravilja max%","teravilja max%","teravilja max%","teravilja max%","teravilja max%","teravilja max%","teravilja max%","teravilja max%","teravilja max%","teravilja max%","teravilja max%","teravilja max%","teravilja max%","nisu max%","nisu max%","nisu max%","nisu max%","nisu max%","nisu max%","nisu max%","nisu max%"]
[null,"Silo","Kõrreliste silo hea heintaimikuga kultuurrohumaalt LL 030-12-40",0.03,0.35,10.1,280,79,-6,{"$f":"I2","v":-6},6,{"$f":"K2","v":6},3,128,null,30,370,560,1,{"$f":"-'Lehm ja ratsiooni tingimused'!$D$20","v":-1},null,null,null,null,null,null,null,null,null,{"$f":"0-'Lehm ja ratsiooni tingimused'!$D$19","v":0},null,null,null,{"$f":"1-'Lehm ja ratsiooni tingimused'!$D$21","v":1},{"$f":"IF(AND(Tehniline!$A$32,Tehniline!$A$33),-'Lehm ja ratsiooni tingimused'!$D$21,0)","v":0},{"$f":"IF(AND(Tehniline!$A$32,Tehniline!$A$34),-'Lehm ja ratsiooni tingimused'!$D$21,0)","v":0},{"$f":"IF(AND(Tehniline!$A$32,Tehniline!$A$35),-'Lehm ja ratsiooni tingimused'!$D$21,0)","v":0},{"$f":"IF(AND(Tehniline!$A$32,Tehniline!$A$36),-'Lehm ja ratsiooni tingimused'!$D$21,0)","v":0},{"$f":"IF(AND(Tehniline!$A$32,Tehniline!$A$37),-'Lehm ja ratsiooni tingimused'!$D$21,0)","v":0},{"$f":"IF(AND(Tehniline!$A$32,Tehniline!$A$38),-'Lehm ja ratsiooni tingimused'!$D$21,0)","v":0},{"$f":"IF(AND(Tehniline!$A$32,Tehniline!$A$39),-'Lehm ja ratsiooni tingimused'!$D$21,0)","v":0},{"$f":"IF(AND(Tehniline!$A$32,Tehniline!$A$40),-'Lehm ja ratsiooni tingimused'!$D$21,0)","v":0},{"$f":"IF(AND(Tehniline!$A$32,Tehniline!$A$41),-'Lehm ja ratsiooni tingimused'!$D$21,0)","v":0},{"$f":"IF(AND(Tehniline!$A$32,Tehniline!$A$42),-'Lehm ja ratsiooni tingimused'!$D$21,0)","v":0},{"$f":"IF(AND(Tehniline!$A$32,Tehniline!$A$43),-'Lehm ja ratsiooni tingimused'!$D$21,0)","v":0},{"$f":"IF(AND(Tehniline!$A$32,Tehniline!$A$44),-'Lehm ja ratsiooni tingimused'!$D$21,0)","v":0}]
[null,"Silo","Põldheinasilo (75% ristikut) LL 101-12-40",0.03,0.35,9.6999999999999993,275,79,7,{"$f":"I3","v":7},12.2,{"$f":"K3","v":12.2},2.6,142,null,30,343,467,1,{"$f":"-'Lehm ja ratsiooni tingimused'!$D$20","v":-1},null,null,null,null,null,null,null,null,null,{"$f":"0-'Lehm ja ratsiooni tingimused'!$D$19","v":0},null,null,null,{"$f":"IF(AND(Tehniline!$A$32,Tehniline!$A$33),-'Lehm ja ratsiooni tingimused'!$D$21,0)","v":0},{"$f":"1-'Lehm ja ratsiooni tingimused'!$D$21","v":1},{"$f":"IF(AND(Tehniline!$A$34,Tehniline!$A$33),-'Lehm ja ratsiooni tingimused'!$D$21,0)","v":0},{"$f":"IF(AND(Tehniline!$A$35,Tehniline!$A$33),-'Lehm ja ratsiooni tingimused'!$D$21,0)","v":0},{"$f":"IF(AND(Tehniline!$A$36,Tehniline!$A$33),-'Lehm ja ratsiooni tingimused'!$D$21,0)","v":0},{"$f":"IF(AND(Tehniline!$A$37,Tehniline!$A$33),-'Lehm ja ratsiooni tingimused'!$D$21,0)","v":0},{"$f":"IF(AND(Tehniline!$A$38,Tehniline!$A$33),-'Lehm ja ratsiooni tingimused'!$D$21,0)","v":0},{"$f":"IF(AND(Tehniline!$A$39,Tehniline!$A$33),-'Lehm ja ratsiooni tingimused'!$D$21,0)","v":0},{"$f":"IF(AND(Tehniline!$A$40,Tehniline!$A$33),-'Lehm ja ratsiooni tingimused'!$D$21,0)","v":0},{"$f":"IF(AND(Tehniline!$A$41,Tehniline!$A$33),-'Lehm ja ratsiooni tingimused'!$D$21,0)","v":0},{"$f":"IF(AND(Tehniline!$A$42,Tehniline!$A$33),-'Lehm ja ratsiooni tingimused'!$D$21,0)","v":0},{"$f":"IF(AND(Tehniline!$A$43,Tehniline!$A$33),-'Lehm ja ratsiooni tingimused'!$D$21,0)","v":0},{"$f":"IF(AND(Tehniline!$A$44,Tehniline!$A$33),-'Lehm ja ratsiooni tingimused'!$D$21,0)","v":0}]
[null,"Silo","Põldheinasilo (50% ristikut) LL  103-12-40",0.03,0.35,9.8000000000000007,280,79,0,0,9.9,9.9,2.6,135,null,30,354,502,1,{"$f":"-'Lehm ja ratsiooni tingimused'!$D$20","v":-1},null,null,null,null,null,null,null,null,null,{"$f":"0-'Lehm ja ratsiooni tingimused'!$D$19","v":0},null,null,null,{"$f":"IF(AND(Tehniline!$A$32,Tehniline!$A$34),-'Lehm ja ratsiooni tingimused'!$D$21,0)","v":0},{"$f":"IF(AND(Tehniline!$A$33,Tehniline!$A$34),-'Lehm ja ratsiooni tingimused'!$D$21,0)","v":0},{"$f":"1-'Lehm ja ratsiooni tingimused'!$D$21","v":1},{"$f":"IF(AND(Tehniline!$A$35,Tehniline!$A$34),-'Lehm ja ratsiooni tingimused'!$D$21,0)","v":0},{"$f":"IF(AND(Tehniline!$A$36,Tehniline!$A$34),-'Lehm ja ratsiooni tingimused'!$D$21,0)","v":0},{"$f":"IF(AND(Tehniline!$A$37,Tehniline!$A$34),-'Lehm ja ratsiooni tingimused'!$D$21,0)","v":0},{"$f":"IF(AND(Tehniline!$A$38,Tehniline!$A$34),-'Lehm ja ratsiooni tingimused'!$D$21,0)","v":0},{"$f":"IF(AND(Tehniline!$A$39,Tehniline!$A$34),-'Lehm ja ratsiooni tingimused'!$D$21,0)","v":0},{"$f":"IF(AND(Tehniline!$A$40,Tehniline!$A$34),-'Lehm ja ratsiooni tingimused'!$D$21,0)","v":0},{"$f":"IF(AND(Tehniline!$A$41,Tehniline!$A$34),-'Lehm ja ratsiooni tingimused'!$D$21,0)","v":0},{"$f":"IF(AND(Tehniline!$A$42,Tehniline!$A$34),-'Lehm ja ratsiooni tingimused'!$D$21,0)","v":0},{"$f":"IF(AND(Tehniline!$A$43,Tehniline!$A$34),-'Lehm ja ratsiooni tingimused'!$D$21,0)","v":0},{"$f":"IF(AND(Tehniline!$A$44,Tehniline!$A$34),-'Lehm ja ratsiooni tingimused'!$D$21,0)","v":0}]
[null,"Silo","Põldheinasilo (25% ristikut) LL  106-12-40",0.03,0.35,9.9,284,76,-5,-5,7.5,7.5,2.7,125,null,30,364,536,1,{"$f":"-'Lehm ja ratsiooni tingimused'!$D$20","v":-1},null,null,null,null,null,null,null,null,null,{"$f":"0-'Lehm ja ratsiooni tingimused'!$D$19","v":0},null,null,null,{"$f":"IF(AND(Tehniline!$A$32,Tehniline!$A$35),-'Lehm ja ratsiooni tingimused'!$D$21,0)","v":0},{"$f":"IF(AND(Tehniline!$A$33,Tehniline!$A$35),-'Lehm ja ratsiooni tingimused'!$D$21,0)","v":0},{"$f":"IF(AND(Tehniline!$A$34,Tehniline!$A$35),-'Lehm ja ratsiooni tingimused'!$D$21,0)","v":0},{"$f":"1-'Lehm ja ratsiooni tingimused'!$D$21","v":1},{"$f":"IF(AND(Tehniline!$A$36,Tehniline!$A$35),-'Lehm ja ratsiooni tingimused'!$D$21,0)","v":0},{"$f":"IF(AND(Tehniline!$A$37,Tehniline!$A$35),-'Lehm ja ratsiooni tingimused'!$D$21,0)","v":0},{"$f":"IF(AND(Tehniline!$A$38,Tehniline!$A$35),-'Lehm ja ratsiooni tingimused'!$D$21,0)","v":0},{"$f":"IF(AND(Tehniline!$A$39,Tehniline!$A$35),-'Lehm ja ratsiooni tingimused'!$D$21,0)","v":0},{"$f":"IF(AND(Tehniline!$A$40,Tehniline!$A$35),-'Lehm ja ratsiooni tingimused'!$D$21,0)","v":0},{"$f":"IF(AND(Tehniline!$A$41,Tehniline!$A$35),-'Lehm ja ratsiooni tingimused'!$D$21,0)","v":0},{"$f":"IF(AND(Tehniline!$A$42,Tehniline!$A$35),-'Lehm ja ratsiooni tingimused'!$D$21,0)","v":0},{"$f":"IF(AND(Tehniline!$A$43,Tehniline!$A$35),-'Lehm ja ratsiooni tingimused'!$D$21,0)","v":0},{"$f":"IF(AND(Tehniline!$A$44,Tehniline!$A$35),-'Lehm ja ratsiooni tingimused'!$D$21,0)","v":0}]
[null,"Silo","Lutsernisilo  TÕ 120-12-60",0.03,0.35,8.4,332,68,30,30,15.5,15.5,2.6,147,null,30,382,475,1,{"$f":"-'Lehm ja ratsiooni tingimused'!$D$20","v":-1},null,null,null,null,null,null,null,null,null,{"$f":"0-'Lehm ja ratsiooni tingimused'!$D$19","v":0},null,null,null,{"$f":"IF(AND(Tehniline!$A$32,Tehniline!$A$36),-'Lehm ja ratsiooni tingimused'!$D$21,0)","v":0},{"$f":"IF(AND(Tehniline!$A$33,Tehniline!$A$36),-'Lehm ja ratsiooni tingimused'!$D$21,0)","v":0},{"$f":"IF(AND(Tehniline!$A$34,Tehniline!$A$36),-'Lehm ja ratsiooni tingimused'!$D$21,0)","v":0},{"$f":"IF(AND(Tehniline!$A$35,Tehniline!$A$36),-'Lehm ja ratsiooni tingimused'!$D$21,0)","v":0},{"$f":"1-'Lehm ja ratsiooni tingimused'!$D$21","v":1},{"$f":"IF(AND(Tehniline!$A$37,Tehniline!$A$36),-'Lehm ja ratsiooni tingimused'!$D$21,0)","v":0},{"$f":"IF(AND(Tehniline!$A$38,Tehniline!$A$36),-'Lehm ja ratsiooni tingimused'!$D$21,0)","v":0},{"$f":"IF(AND(Tehniline!$A$39,Tehniline!$A$36),-'Lehm ja ratsiooni tingimused'!$D$21,0)","v":0},{"$f":"IF(AND(Tehniline!$A$40,Tehniline!$A$36),-'Lehm ja ratsiooni tingimused'!$D$21,0)","v":0},{"$f":"IF(AND(Tehniline!$A$41,Tehniline!$A$36),-'Lehm ja ratsiooni tingimused'!$D$21,0)","v":0},{"$f":"IF(AND(Tehniline!$A$42,Tehniline!$A$36),-'Lehm ja ratsiooni tingimused'!$D$21,0)","v":0},{"$f":"IF(AND(Tehniline!$A$43,Tehniline!$A$36),-'Lehm ja ratsiooni tingimused'!$D$21,0)","v":0},{"$f":"IF(AND(Tehniline!$A$44,Tehniline!$A$36),-'Lehm ja ratsiooni tingimused'!$D$21,0)","v":0}]
[null,"Silo","Timutisilo  LL 200-12-40",0.03,0.35,10.1,289,76,-15,-15,5.2,5.2,2.7,115,null,30,375,571,1,{"$f":"-'Lehm ja ratsiooni tingimused'!$D$20","v":-1},null,null,null,null,null,null,null,null,null,{"$f":"0-'Lehm ja ratsiooni tingimused'!$D$19","v":0},null,null,null,{"$f":"IF(AND(Tehniline!$A$32,Tehniline!$A$37),-'Lehm ja ratsiooni tingimused'!$D$21,0)","v":0},{"$f":"IF(AND(Tehniline!$A$33,Tehniline!$A$37),-'Lehm ja ratsiooni tingimused'!$D$21,0)","v":0},{"$f":"IF(AND(Tehniline!$A$34,Tehniline!$A$37),-'Lehm ja ratsiooni tingimused'!$D$21,0)","v":0},{"$f":"IF(AND(Tehniline!$A$35,Tehniline!$A$37),-'Lehm ja ratsiooni tingimused'!$D$21,0)","v":0},{"$f":"IF(AND(Tehniline!$A$36,Tehniline!$A$37),-'Lehm ja ratsiooni tingimused'!$D$21,0)","v":0},{"$f":"1-'Lehm ja ratsiooni tingimused'!$D$21","v":1},{"$f":"IF(AND(Tehniline!$A$38,Tehniline!$A$37),-'Lehm ja ratsiooni tingimused'!$D$21,0)","v":0},{"$f":"IF(AND(Tehniline!$A$39,Tehniline!$A$37),-'Lehm ja ratsiooni tingimused'!$D$21,0)","v":0},{"$f":"IF(AND(Tehniline!$A$40,Tehniline!$A$37),-'Lehm ja ratsiooni tingimused'!$D$21,0)","v":0},{"$f":"IF(AND(Tehniline!$A$41,Tehniline!$A$37),-'Lehm ja ratsiooni tingimused'!$D$21,0)","v":0},{"$f":"IF(AND(Tehniline!$A$42,Tehniline!$A$37),-'Lehm ja ratsiooni tingimused'!$D$21,0)","v":0},{"$f":"IF(AND(Tehniline!$A$43,Tehniline!$A$37),-'Lehm ja ratsiooni tingimused'!$D$21,0)","v":0},{"$f":"IF(AND(Tehniline!$A$44,Tehniline!$A$37),-'Lehm ja ratsiooni tingimused'!$D$21,0)","v":0}]
[null,"Silo","Odravilisesilo  VK (vahaküpsus) 255-12-80",0.03,0.3,9.1999999999999993,255,72,-26,-26,3.5,3.5,2.4,96,null,30,306,514,1,{"$f":"-'Lehm ja ratsiooni tingimused'!$D$20","v":-1},null,null,null,null,null,null,null,null,null,{"$f":"0-'Lehm ja ratsiooni tingimused'!$D$19","v":0},null,null,null,{"$f":"IF(AND(Tehniline!$A$32,Tehniline!$A$38),-'Lehm ja ratsiooni tingimused'!$D$21,0)","v":0},{"$f":"IF(AND(Tehniline!$A$33,Tehniline!$A$38),-'Lehm ja ratsiooni tingimused'!$D$21,0)","v":0},{"$f":"IF(AND(Tehniline!$A$34,Tehniline!$A$38),-'Lehm ja ratsiooni tingimused'!$D$21,0)","v":0},{"$f":"IF(AND(Tehniline!$A$35,Tehniline!$A$38),-'Lehm ja ratsiooni tingimused'!$D$21,0)","v":0},{"$f":"IF(AND(Tehniline!$A$36,Tehniline!$A$38),-'Lehm ja ratsiooni tingimused'!$D$21,0)","v":0},{"$f":"IF(AND(Tehniline!$A$37,Tehniline!$A$38),-'Lehm ja ratsiooni tingimused'!$D$21,0)","v":0},{"$f":"1-'Lehm ja ratsiooni tingimused'!$D$21","v":1},{"$f":"IF(AND(Tehniline!$A$39,Tehniline!$A$38),-'Lehm ja ratsiooni tingimused'!$D$21,0)","v":0},{"$f":"IF(AND(Tehniline!$A$40,Tehniline!$A$38),-'Lehm ja ratsiooni tingimused'!$D$21,0)","v":0},{"$f":"IF(AND(Tehniline!$A$41,Tehniline!$A$38),-'Lehm ja ratsiooni tingimused'!$D$21,0)","v":0},{"$f":"IF(AND(Tehniline!$A$42,Tehniline!$A$38),-'Lehm ja ratsiooni tingimused'!$D$21,0)","v":0},{"$f":"IF(AND(Tehniline!$A$43,Tehniline!$A$38),-'Lehm ja ratsiooni tingimused'!$D$21,0)","v":0},{"$f":"IF(AND(Tehniline!$A$44,Tehniline!$A$38),-'Lehm ja ratsiooni tingimused'!$D$21,0)","v":0}]
[null,"Silo","V auk - rohusilo",0.03,0.253,8.8000000000000007,312,72,27,27,10.9,10.9,3.4,96,null,30,350,500,1,{"$f":"-'Lehm ja ratsiooni tingimused'!$D$20","v":-1},null,null,null,null,null,null,null,null,null,{"$f":"0-'Lehm ja ratsiooni tingimused'!$D$19","v":0},null,null,null,{"$f":"IF(AND(Tehniline!$A$32,Tehniline!$A$39),-'Lehm ja ratsiooni tingimused'!$D$21,0)","v":0},{"$f":"IF(AND(Tehniline!$A$33,Tehniline!$A$39),-'Lehm ja ratsiooni tingimused'!$D$21,0)","v":0},{"$f":"IF(AND(Tehniline!$A$34,Tehniline!$A$39),-'Lehm ja ratsiooni tingimused'!$D$21,0)","v":0},{"$f":"IF(AND(Tehniline!$A$35,Tehniline!$A$39),-'Lehm ja ratsiooni tingimused'!$D$21,0)","v":0},{"$f":"IF(AND(Tehniline!$A$36,Tehniline!$A$39),-'Lehm ja ratsiooni tingimused'!$D$21,0)","v":0},{"$f":"IF(AND(Tehniline!$A$37,Tehniline!$A$39),-'Lehm ja ratsiooni tingimused'!$D$21,0)","v":0},{"$f":"IF(AND(Tehniline!$A$38,Tehniline!$A$39),-'Lehm ja ratsiooni tingimused'!$D$21,0)","v":0},{"$f":"1-'Lehm ja ratsiooni tingimused'!$D$21","v":1},{"$f":"IF(AND(Tehniline!$A$40,Tehniline!$A$39),-'Lehm ja ratsiooni tingimused'!$D$21,0)","v":0},{"$f":"IF(AND(Tehniline!$A$41,Tehniline!$A$39),-'Lehm ja ratsiooni tingimused'!$D$21,0)","v":0},{"$f":"IF(AND(Tehniline!$A$42,Tehniline!$A$39),-'Lehm ja ratsiooni tingimused'!$D$21,0)","v":0},{"$f":"IF(AND(Tehniline!$A$43,Tehniline!$A$39),-'Lehm ja ratsiooni tingimused'!$D$21,0)","v":0},{"$f":"IF(AND(Tehniline!$A$44,Tehniline!$A$39),-'Lehm ja ratsiooni tingimused'!$D$21,0)","v":0}]
[null,"Silo",null,null,null,null,null,null,null,0,null,0,null,null,null,null,null,null,1,{"$f":"-'Lehm ja ratsiooni tingimused'!$D$20","v":-1},null,null,null,null,null,null,null,null,null,{"$f":"0-'Lehm ja ratsiooni tingimused'!$D$19","v":0},null,null,null,{"$f":"IF(AND(Tehniline!$A$32,Tehniline!$A$40),-'Lehm ja ratsiooni tingimused'!$D$21,0)","v":0},{"$f":"IF(AND(Tehniline!$A$33,Tehniline!$A$40),-'Lehm ja ratsiooni tingimused'!$D$21,0)","v":0},{"$f":"IF(AND(Tehniline!$A$34,Tehniline!$A$40),-'Lehm ja ratsiooni tingimused'!$D$21,0)","v":0},{"$f":"IF(AND(Tehniline!$A$35,Tehniline!$A$40),-'Lehm ja ratsiooni tingimused'!$D$21,0)","v":0},{"$f":"IF(AND(Tehniline!$A$36,Tehniline!$A$40),-'Lehm ja ratsiooni tingimused'!$D$21,0)","v":0},{"$f":"IF(AND(Tehniline!$A$37,Tehniline!$A$40),-'Lehm ja ratsiooni tingimused'!$D$21,0)","v":0},{"$f":"IF(AND(Tehniline!$A$38,Tehniline!$A$40),-'Lehm ja ratsiooni tingimused'!$D$21,0)","v":0},{"$f":"IF(AND(Tehniline!$A$39,Tehniline!$A$40),-'Lehm ja ratsiooni tingimused'!$D$21,0)","v":0},{"$f":"1-'Lehm ja ratsiooni tingimused'!$D$21","v":1},{"$f":"IF(AND(Tehniline!$A$41,Tehniline!$A$40),-'Lehm ja ratsiooni tingimused'!$D$21,0)","v":0},{"$f":"IF(AND(Tehniline!$A$42,Tehniline!$A$40),-'Lehm ja ratsiooni tingimused'!$D$21,0)","v":0},{"$f":"IF(AND(Tehniline!$A$43,Tehniline!$A$40),-'Lehm ja ratsiooni tingimused'!$D$21,0)","v":0},{"$f":"IF(AND(Tehniline!$A$44,Tehniline!$A$40),-'Lehm ja ratsiooni tingimused'!$D$21,0)","v":0}]
[null,"Silo",null,null,null,null,null,null,null,0,null,0,null,null,null,null,null,null,1,{"$f":"-'Lehm ja ratsiooni tingimused'!$D$20","v":-1},null,null,null,null,null,null,null,null,null,{"$f":"0-'Lehm ja ratsiooni tingimused'!$D$19","v":0},null,null,null,{"$f":"IF(AND(Tehniline!$A$32,Tehniline!$A$41),-'Lehm ja ratsiooni tingimused'!$D$21,0)","v":0},{"$f":"IF(AND(Tehniline!$A$33,Tehniline!$A$41),-'Lehm ja ratsiooni tingimused'!$D$21,0)","v":0},{"$f":"IF(AND(Tehniline!$A$34,Tehniline!$A$41),-'Lehm ja ratsiooni tingimused'!$D$21,0)","v":0},{"$f":"IF(AND(Tehniline!$A$35,Tehniline!$A$41),-'Lehm ja ratsiooni tingimused'!$D$21,0)","v":0},{"$f":"IF(AND(Tehniline!$A$36,Tehniline!$A$41),-'Lehm ja ratsiooni tingimused'!$D$21,0)","v":0},{"$f":"IF(AND(Tehniline!$A$37,Tehniline!$A$41),-'Lehm ja ratsiooni tingimused'!$D$21,0)","v":0},{"$f":"IF(AND(Tehniline!$A$38,Tehniline!$A$41),-'Lehm ja ratsiooni tingimused'!$D$21,0)","v":0},{"$f":"IF(AND(Tehniline!$A$39,Tehniline!$A$41),-'Lehm ja ratsiooni tingimused'!$D$21,0)","v":0},{"$f":"IF(AND(Tehniline!$A$40,Tehniline!$A$41),-'Lehm ja ratsiooni tingimused'!$D$21,0)","v":0},{"$f":"1-'Lehm ja ratsiooni tingimused'!$D$21","v":1},{"$f":"IF(AND(Tehniline!$A$42,Tehniline!$A$41),-'Lehm ja ratsiooni tingimused'!$D$21,0)","v":0},{"$f":"IF(AND(Tehniline!$A$43,Tehniline!$A$41),-'Lehm ja ratsiooni tingimused'!$D$21,0)","v":0},{"$f":"IF(AND(Tehniline!$A$44,Tehniline!$A$41),-'Lehm ja ratsiooni tingimused'!$D$21,0)","v":0}]
[null,"Silo",null,null,null,null,null,null,null,0,null,0,null,null,null,null,null,null,1,{"$f":"-'Lehm ja ratsiooni tingimused'!$D$20","v":-1},null,null,null,null,null,null,null,null,null,{"$f":"0-'Lehm ja ratsiooni tingimused'!$D$19","v":0},null,null,null,{"$f":"IF(AND(Tehniline!$A$32,Tehniline!$A$42),-'Lehm ja ratsiooni tingimused'!$D$21,0)","v":0},{"$f":"IF(AND(Tehniline!$A$33,Tehniline!$A$42),-'Lehm ja ratsiooni tingimused'!$D$21,0)","v":0},{"$f":"IF(AND(Tehniline!$A$34,Tehniline!$A$42),-'Lehm ja ratsiooni tingimused'!$D$21,0)","v":0},{"$f":"IF(AND(Tehniline!$A$35,Tehniline!$A$42),-'Lehm ja ratsiooni tingimused'!$D$21,0)","v":0},{"$f":"IF(AND(Tehniline!$A$36,Tehniline!$A$42),-'Lehm ja ratsiooni tingimused'!$D$21,0)","v":0},{"$f":"IF(AND(Tehniline!$A$37,Tehniline!$A$42),-'Lehm ja ratsiooni tingimused'!$D$21,0)","v":0},{"$f":"IF(AND(Tehniline!$A$38,Tehniline!$A$42),-'Lehm ja ratsiooni tingimused'!$D$21,0)","v":0},{"$f":"IF(AND(Tehniline!$A$39,Tehniline!$A$42),-'Lehm ja ratsiooni tingimused'!$D$21,0)","v":0},{"$f":"IF(AND(Tehniline!$A$40,Tehniline!$A$42),-'Lehm ja ratsiooni tingimused'!$D$21,0)","v":0},{"$f":"IF(AND(Tehniline!$A$41,Tehniline!$A$42),-'Lehm ja ratsiooni tingimused'!$D$21,0)","v":0},{"$f":"1-'Lehm ja ratsiooni tingimused'!$D$21","v":1},{"$f":"IF(AND(Tehniline!$A$43,Tehniline!$A$42),-'Lehm ja ratsiooni tingimused'!$D$21,0)","v":0},{"$f":"IF(AND(Tehniline!$A$44,Tehniline!$A$42),-'Lehm ja ratsiooni tingimused'!$D$21,0)","v":0}]
[null,"Silo",null,null,null,null,null,null,null,0,null,0,null,null,null,null,null,null,1,{"$f":"-'Lehm ja ratsiooni tingimused'!$D$20","v":-1},null,null,null,null,null,null,null,null,null,{"$f":"0-'Lehm ja ratsiooni tingimused'!$D$19","v":0},null,null,null,{"$f":"IF(AND(Tehniline!$A$32,Tehniline!$A$43),-'Lehm ja ratsiooni tingimused'!$D$21,0)","v":0},{"$f":"IF(AND(Tehniline!$A$33,Tehniline!$A$43),-'Lehm ja ratsiooni tingimused'!$D$21,0)","v":0},{"$f":"IF(AND(Tehniline!$A$34,Tehniline!$A$43),-'Lehm ja ratsiooni tingimused'!$D$21,0)","v":0},{"$f":"IF(AND(Tehniline!$A$35,Tehniline!$A$43),-'Lehm ja ratsiooni tingimused'!$D$21,0)","v":0},{"$f":"IF(AND(Tehniline!$A$36,Tehniline!$A$43),-'Lehm ja ratsiooni tingimused'!$D$21,0)","v":0},{"$f":"IF(AND(Tehniline!$A$37,Tehniline!$A$43),-'Lehm ja ratsiooni tingimused'!$D$21,0)","v":0},{"$f":"IF(AND(Tehniline!$A$38,Tehniline!$A$43),-'Lehm ja ratsiooni tingimused'!$D$21,0)","v":0},{"$f":"IF(AND(Tehniline!$A$39,Tehniline!$A$43),-'Lehm ja ratsiooni tingimused'!$D$21,0)","v":0},{"$f":"IF(AND(Tehniline!$A$40,Tehniline!$A$43),-'Lehm ja ratsiooni tingimused'!$D$21,0)","v":0},{"$f":"IF(AND(Tehniline!$A$41,Tehniline!$A$43),-'Lehm ja ratsiooni tingimused'!$D$21,0)","v":0},{"$f":"IF(AND(Tehniline!$A$42,Tehniline!$A$43),-'Lehm ja ratsiooni tingimused'!$D$21,0)","v":0},{"$f":"1-'Lehm ja ratsiooni tingimused'!$D$21","v":1},{"$f":"IF(AND(Tehniline!$A$44,Tehniline!$A$43),-'Lehm ja ratsiooni tingimused'!$D$21,0)","v":0}]
[null,"Maisisilo","Maisisilo PK 260-12-70",0.03,0.22,10.4,280,76,-34,-34,4,4,2.2999999999999998,95,null,200,356,575,1,{"$f":"1-'Lehm ja ratsiooni tingimused'!$D$20","v":0},null,null,null,null,null,null,null,null,null,{"$f":"1-'Lehm ja ratsiooni tingimused'!$D$19","v":1}]
[null,"Maisisilo","VII auk - maisisilo",0.03,0.23,11,223,79,-43,-43,3.9,3.9,2.1,91,null,200,356,575,1,{"$f":"1-'Lehm ja ratsiooni tingimused'!$D$20","v":0},null,null,null,null,null,null,null,null,null,{"$f":"1-'Lehm ja ratsiooni tingimused'!$D$19","v":1}]
[null,"Maisisilo",null,null,null,null,null,null,null,0,null,0,null,null,null,null,null,null,1,{"$f":"1-'Lehm ja ratsiooni tingimused'!$D$20","v":0},null,null,null,null,null,null,null,null,null,{"$f":"1-'Lehm ja ratsiooni tingimused'!$D$19","v":1}]
[null,"Maisisilo",null,null,null,null,null,null,null,0,null,0,null,null,null,null,null,null,1,{"$f":"1-'Lehm ja ratsiooni tingimused'!$D$20","v":0},null,null,null,null,null,null,null,null,null,{"$f":"1-'Lehm ja ratsiooni tingimused'!$D$19","v":1}]
[null,"Maisisilo",null,null,null,null,null,null,null,0,null,0,null,null,null,null,null,null,1,{"$f":"1-'Lehm ja ratsiooni tingimused'!$D$20","v":0},null,null,null,null,null,null,null,null,null,{"$f":"1-'Lehm ja ratsiooni tingimused'!$D$19","v":1}]
[null,"Hein","Hein kõrreliste kultuurrohumaa  030-15-60",7.8E-2,0.83,8.4,335,69,-39,-39,5.3,5.3,2.2999999999999998,80,null,null,423,667,null,null,1]
[null,"Hein","Põldhein (75% ristikut) LL 101-15-40",7.8E-2,0.83,9.3000000000000007,308,83,-9,-9,11.4,11.4,2.5,134,null,null,375,530,null,null,1]
[null,"Hein","Põldhein (50% ristikut)  LL 103-15-40",7.8E-2,0.83,9.3000000000000007,314,81,-17,-17,9.1999999999999993,9.1999999999999993,2.4,123,null,null,384,569,null,null,1]
[null,"Hein","Timuthein LL 200-15-40",7.8E-2,0.83,9,325,76,-30,-30,4.8,4.8,2.4,100,null,null,403,646,null,null,1]
[null,"Hein","Põldhein (25% ristikut) LL 106-15-40",7.8E-2,0.83,9,319,77,-22,-22,7,7,2.4,111,null,null,393,607,null,null,1]
[null,"Hein","Püsirohumaa hein",7.8E-2,0.83,7.1,304,63,-19,-19,4,4,2,95,null,null,396,604,null,null,1]
[null,"Hein",null,null,null,null,null,null,null,0,null,0,null,null,null,null,null,null,null,null,1]
[null,"Hein",null,null,null,null,null,null,null,0,null,0,null,null,null,null,null,null,null,null,1]
[null,"Hein",null,null,null,null,null,null,null,0,null,0,null,null,null,null,null,null,null,null,1]
[null,"Põhk","Kaerapõhk 250-16-0",1.4999999999999999E-2,0.83,6.8,425,54,-48,-48,3.9,3.9,1.1000000000000001,45,null,null,471,751,null,null,null,1]
[null,"Põhk","Odrapõhk 255-16-0",1.4999999999999999E-2,0.83,6.9,420,56,-48,-48,3.9,3.9,1,47,null,null,499,788,null,null,null,1]
[null,"Põhk","Nisupõhk 265-16-0",1.4999999999999999E-2,0.83,6,436,48,-45,-45,3,3,0.8,37,null,null,535,818,null,null,null,1]
[null,"Põhk","Segaviljapõhk 061-16-0",1.4999999999999999E-2,0.83,7,420,58,-34,-34,10.199999999999999,10.199999999999999,1.7,65,null,null,null,null,null,null,null,1]
[null,"Põhk","Rapsipõhk",1.4999999999999999E-2,0.82,5.3,498,49,-52,-52,14.2,14.2,0.8,31,null,null,null,null,null,null,null,1]
[null,"Põhk",null,null,null,null,null,null,null,0,null,0,null,null,null,null,null,null,null,null,null,1]
[null,"Põhk",null,null,null,null,null,null,null,0,null,0,null,null,null,null,null,null,null,null,null,1]
[null,"Põhk",null,null,null,null,null,null,null,0,null,0,null,null,null,null,null,null,null,null,null,1]
[null,"Õlikoogid","Rapsikook  350-28",0.27,0.9,13.4,123,161,139,139,8.3000000000000007,8.3000000000000007,10.5,342,null,120,232,333,null,null,null,null,1,null,null,1]
[null,"Õlikoogid","Rapsisrott 350-29",0.37,0.9,11.7,135,157,142,142,8,8,11.5,382,null,120,null,null,null,null,null,null,1,null,null,1]
[null,"Õlikoogid","Sojašrott 310-29",0.46,0.88,14.1,79,196,200,200,3.4,3.4,7.3,500,null,260,94,170,null,null,null,null,1]
[null,"Õlikoogid","Päevalillekook 300-28",0.4,0.9,10.8,224,125,164,164,3.5,3.5,9.5,356,null,120,null,null,null,null,null,null,1]
[null,"Õlikoogid","Päevalillesrott 300-29",0.4,0.9,9.3000000000000007,235,134,175,175,4.4000000000000004,4.4000000000000004,11.5,380,null,120,null,null,null,null,null,null,1]
[null,"Õlikoogid",null,null,null,null,null,null,null,0,null,0,null,null,null,null,null,null,null,null,null,null,1]
[null,"Õlikoogid",null,null,null,null,null,null,null,0,null,0,null,null,null,null,null,null,null,null,null,null,1]
[null,"Õlikoogid",null,null,null,null,null,null,null,0,null,0,null,null,null,null,null,null,null,null,null,null,1]
[null,"Teraviljad","Oder  255-20/21",0.159,0.86,13,60,103,-44,-44,0.8,0.8,4.0999999999999996,125,null,600,79,221,null,null,null,null,1,0.5,{"$f":"0-'Lehm ja ratsiooni tingimused'!$D$32","v":-0.5},null,null,null,null,null,null,null,null,null,null,null,null,null,null,null,null,null,null,null,null,null,null,{"$f":"1-'Lehm ja ratsiooni tingimused'!$D$33","v":1},{"$f":"IF(AND(Tehniline!$B$33,Tehniline!$B32),-'Lehm ja ratsiooni tingimused'!$D$33,0)","v":0},{"$f":"IF(AND(Tehniline!$B$34,Tehniline!$B32),-'Lehm ja ratsiooni tingimused'!$D$33,0)","v":0},{"$f":"IF(AND(Tehniline!$B$35,Tehniline!$B32),-'Lehm ja ratsiooni tingimused'!$D$33,0)","v":0},{"$f":"IF(AND(Tehniline!$B$36,Tehniline!$B32),-'Lehm ja ratsiooni tingimused'!$D$33,0)","v":0},{"$f":"IF(AND(Tehniline!$B$37,Tehniline!$B32),-'Lehm ja ratsiooni tingimused'!$D$33,0)","v":0},{"$f":"IF(AND(Tehniline!$B$38,Tehniline!$B32),-'Lehm ja ratsiooni tingimused'!$D$33,0)","v":0},{"$f":"IF(AND(Tehniline!$B$39,Tehniline!$B32),-'Lehm ja ratsiooni tingimused'!$D$33,0)","v":0},{"$f":"IF(AND(Tehniline!$B$40,Tehniline!$B32),-'Lehm ja ratsiooni tingimused'!$D$33,0)","v":0},{"$f":"IF(AND(Tehniline!$B$41,Tehniline!$B32),-'Lehm ja ratsiooni tingimused'!$D$33,0)","v":0},{"$f":"IF(AND(Tehniline!$B$42,Tehniline!$B32),-'Lehm ja ratsiooni tingimused'!$D$33,0)","v":0},{"$f":"IF(AND(Tehniline!$B$43,Tehniline!$B32),-'Lehm ja ratsiooni tingimused'!$D$33,0)","v":0},{"$f":"IF(AND(Tehniline!$B$44,Tehniline!$B32),-'Lehm ja ratsiooni tingimused'!$D$33,0)","v":0},{"$f":"IF(AND(Tehniline!$B$45,Tehniline!$B32),-'Lehm ja ratsiooni tingimused'!$D$33,0)","v":0},{"$f":"IF(AND(Tehniline!$B$46,Tehniline!$B32),-'Lehm ja ratsiooni tingimused'!$D$33,0)","v":0},{"$f":"IF(AND(Tehniline!$B$47,Tehniline!$B32),-'Lehm ja ratsiooni tingimused'!$D$33,0)","v":0},{"$f":"IF(AND(Tehniline!$B$48,Tehniline!$B32),-'Lehm ja ratsiooni tingimused'!$D$33,0)","v":0},{"$f":"IF(AND(Tehniline!$B$49,Tehniline!$B32),-'Lehm ja ratsiooni tingimused'!$D$33,0)","v":0},{"$f":"IF(AND(Tehniline!$B$50,Tehniline!$B32),-'Lehm ja ratsiooni tingimused'!$D$33,0)","v":0},{"$f":"IF(AND(Tehniline!$B$51,Tehniline!$B32),-'Lehm ja ratsiooni tingimused'!$D$33,0)","v":0},{"$f":"IF(AND(Tehniline!$B$52,Tehniline!$B32),-'Lehm ja ratsiooni tingimused'!$D$33,0)","v":0},{"$f":"IF(AND(Tehniline!$B$53,Tehniline!$B32),-'Lehm ja ratsiooni tingimused'!$D$33,0)","v":0},{"$f":"IF(AND(Tehniline!$B$54,Tehniline!$B32),-'Lehm ja ratsiooni tingimused'!$D$33,0)","v":0},{"$f":"IF(AND(Tehniline!$B$55,Tehniline!$B32),-'Lehm ja ratsiooni tingimused'!$D$33,0)","v":0},{"$f":"IF(AND(Tehniline!$B$56,Tehniline!$B32),-'Lehm ja ratsiooni tingimused'!$D$33,0)","v":0}]
[null,"Teraviljad","Mais 260-20/21",0.2,0.86,14.2,29,121,-100,-100,0.4,0.4,3.1,95,null,700,28,108,null,null,null,null,1,-0.5,{"$f":"0-'Lehm ja ratsiooni tingimused'!$D$32","v":-0.5},null,null,null,null,null,null,null,null,null,null,null,null,null,null,null,null,null,null,null,null,null,null,{"$f":"IF(AND(Tehniline!$B$32,Tehniline!$B33),-'Lehm ja ratsiooni tingimused'!$D$33,0)","v":0},{"$f":"1-'Lehm ja ratsiooni tingimused'!$D$33","v":1},{"$f":"IF(AND(Tehniline!$B$34,Tehniline!$B33),-'Lehm ja ratsiooni tingimused'!$D$33,0)","v":0},{"$f":"IF(AND(Tehniline!$B$35,Tehniline!$B33),-'Lehm ja ratsiooni tingimused'!$D$33,0)","v":0},{"$f":"IF(AND(Tehniline!$B$36,Tehniline!$B33),-'Lehm ja ratsiooni tingimused'!$D$33,0)","v":0},{"$f":"IF(AND(Tehniline!$B$37,Tehniline!$B33),-'Lehm ja ratsiooni tingimused'!$D$33,0)","v":0},{"$f":"IF(AND(Tehniline!$B$38,Tehniline!$B33),-'Lehm ja ratsiooni tingimused'!$D$33,0)","v":0},{"$f":"IF(AND(Tehniline!$B$39,Tehniline!$B33),-'Lehm ja ratsiooni tingimused'!$D$33,0)","v":0},{"$f":"IF(AND(Tehniline!$B$40,Tehniline!$B33),-'Lehm ja ratsiooni tingimused'!$D$33,0)","v":0},{"$f":"IF(AND(Tehniline!$B$41,Tehniline!$B33),-'Lehm ja ratsiooni tingimused'!$D$33,0)","v":0},{"$f":"IF(AND(Tehniline!$B$42,Tehniline!$B33),-'Lehm ja ratsiooni tingimused'!$D$33,0)","v":0},{"$f":"IF(AND(Tehniline!$B$43,Tehniline!$B33),-'Lehm ja ratsiooni tingimused'!$D$33,0)","v":0},{"$f":"IF(AND(Tehniline!$B$44,Tehniline!$B33),-'Lehm ja ratsiooni tingimused'!$D$33,0)","v":0},{"$f":"IF(AND(Tehniline!$B$45,Tehniline!$B33),-'Lehm ja ratsiooni tingimused'!$D$33,0)","v":0},{"$f":"IF(AND(Tehniline!$B$46,Tehniline!$B33),-'Lehm ja ratsiooni tingimused'!$D$33,0)","v":0},{"$f":"IF(AND(Tehniline!$B$47,Tehniline!$B33),-'Lehm ja ratsiooni tingimused'!$D$33,0)","v":0},{"$f":"IF(AND(Tehniline!$B$48,Tehniline!$B33),-'Lehm ja ratsiooni tingimused'!$D$33,0)","v":0},{"$f":"IF(AND(Tehniline!$B$49,Tehniline!$B33),-'Lehm ja ratsiooni tingimused'!$D$33,0)","v":0},{"$f":"IF(AND(Tehniline!$B$50,Tehniline!$B33),-'Lehm ja ratsiooni tingimused'!$D$33,0)","v":0},{"$f":"IF(AND(Tehniline!$B$51,Tehniline!$B33),-'Lehm ja ratsiooni tingimused'!$D$33,0)","v":0},{"$f":"IF(AND(Tehniline!$B$52,Tehniline!$B33),-'Lehm ja ratsiooni tingimused'!$D$33,0)","v":0},{"$f":"IF(AND(Tehniline!$B$53,Tehniline!$B33),-'Lehm ja ratsiooni tingimused'!$D$33,0)","v":0},{"$f":"IF(AND(Tehniline!$B$54,Tehniline!$B33),-'Lehm ja ratsiooni tingimused'!$D$33,0)","v":0},{"$f":"IF(AND(Tehniline!$B$55,Tehniline!$B33),-'Lehm ja ratsiooni tingimused'!$D$33,0)","v":0},{"$f":"IF(AND(Tehniline!$B$56,Tehniline!$B33),-'Lehm ja ratsiooni tingimused'!$D$33,0)","v":0}]
[null,"Teraviljad","Kaer 250-20/21",0.15,0.86,11.9,112,92,-23,-23,1.2,1.2,3.8,127,null,600,111,310,null,null,null,null,1,-0.5,{"$f":"0-'Lehm ja ratsiooni tingimused'!$D$32","v":-0.5},null,null,null,null,null,null,null,null,null,null,null,null,null,null,null,null,null,null,null,null,null,null,{"$f":"IF(AND(Tehniline!$B$32,Tehniline!$B34),-'Lehm ja ratsiooni tingimused'!$D$33,0)","v":0},{"$f":"IF(AND(Tehniline!$B$33,Tehniline!$B34),-'Lehm ja ratsiooni tingimused'!$D$33,0)","v":0},{"$f":"1-'Lehm ja ratsiooni tingimused'!$D$33","v":1},{"$f":"IF(AND(Tehniline!$B$35,Tehniline!$B34),-'Lehm ja ratsiooni tingimused'!$D$33,0)","v":0},{"$f":"IF(AND(Tehniline!$B$36,Tehniline!$B34),-'Lehm ja ratsiooni tingimused'!$D$33,0)","v":0},{"$f":"IF(AND(Tehniline!$B$37,Tehniline!$B34),-'Lehm ja ratsiooni tingimused'!$D$33,0)","v":0},{"$f":"IF(AND(Tehniline!$B$38,Tehniline!$B34),-'Lehm ja ratsiooni tingimused'!$D$33,0)","v":0},{"$f":"IF(AND(Tehniline!$B$39,Tehniline!$B34),-'Lehm ja ratsiooni tingimused'!$D$33,0)","v":0},{"$f":"IF(AND(Tehniline!$B$40,Tehniline!$B34),-'Lehm ja ratsiooni tingimused'!$D$33,0)","v":0},{"$f":"IF(AND(Tehniline!$B$41,Tehniline!$B34),-'Lehm ja ratsiooni tingimused'!$D$33,0)","v":0},{"$f":"IF(AND(Tehniline!$B$42,Tehniline!$B34),-'Lehm ja ratsiooni tingimused'!$D$33,0)","v":0},{"$f":"IF(AND(Tehniline!$B$43,Tehniline!$B34),-'Lehm ja ratsiooni tingimused'!$D$33,0)","v":0},{"$f":"IF(AND(Tehniline!$B$44,Tehniline!$B34),-'Lehm ja ratsiooni tingimused'!$D$33,0)","v":0},{"$f":"IF(AND(Tehniline!$B$45,Tehniline!$B34),-'Lehm ja ratsiooni tingimused'!$D$33,0)","v":0},{"$f":"IF(AND(Tehniline!$B$46,Tehniline!$B34),-'Lehm ja ratsiooni tingimused'!$D$33,0)","v":0},{"$f":"IF(AND(Tehniline!$B$47,Tehniline!$B34),-'Lehm ja ratsiooni tingimused'!$D$33,0)","v":0},{"$f":"IF(AND(Tehniline!$B$48,Tehniline!$B34),-'Lehm ja ratsiooni tingimused'!$D$33,0)","v":0},{"$f":"IF(AND(Tehniline!$B$49,Tehniline!$B34),-'Lehm ja ratsiooni tingimused'!$D$33,0)","v":0},{"$f":"IF(AND(Tehniline!$B$50,Tehniline!$B34),-'Lehm ja ratsiooni tingimused'!$D$33,0)","v":0},{"$f":"IF(AND(Tehniline!$B$51,Tehniline!$B34),-'Lehm ja ratsiooni tingimused'!$D$33,0)","v":0},{"$f":"IF(AND(Tehniline!$B$52,Tehniline!$B34),-'Lehm ja ratsiooni tingimused'!$D$33,0)","v":0},{"$f":"IF(AND(Tehniline!$B$53,Tehniline!$B34),-'Lehm ja ratsiooni tingimused'!$D$33,0)","v":0},{"$f":"IF(AND(Tehniline!$B$54,Tehniline!$B34),-'Lehm ja ratsiooni tingimused'!$D$33,0)","v":0},{"$f":"IF(AND(Tehniline!$B$55,Tehniline!$B34),-'Lehm ja ratsiooni tingimused'!$D$33,0)","v":0},{"$f":"IF(AND(Tehniline!$B$56,Tehniline!$B34),-'Lehm ja ratsiooni tingimused'!$D$33,0)","v":0}]
[null,"Teraviljad","Rukis 270-20/21",0.13,0.86,13.6,27,103,-60,-60,0.7,0.7,3.5,110,null,600,null,null,null,null,null,null,1,-0.5,{"$f":"0-'Lehm ja ratsiooni tingimused'!$D$32","v":-0.5},null,null,null,null,null,null,null,null,null,null,null,null,null,null,null,null,null,null,null,null,null,null,{"$f":"IF(AND(Tehniline!$B$32,Tehniline!$B35),-'Lehm ja ratsiooni tingimused'!$D$33,0)","v":0},{"$f":"IF(AND(Tehniline!$B$33,Tehniline!$B35),-'Lehm ja ratsiooni tingimused'!$D$33,0)","v":0},{"$f":"IF(AND(Tehniline!$B$34,Tehniline!$B35),-'Lehm ja ratsiooni tingimused'!$D$33,0)","v":0},{"$f":"1-'Lehm ja ratsiooni tingimused'!$D$33","v":1},{"$f":"IF(AND(Tehniline!$B$36,Tehniline!$B35),-'Lehm ja ratsiooni tingimused'!$D$33,0)","v":0},{"$f":"IF(AND(Tehniline!$B$37,Tehniline!$B35),-'Lehm ja ratsiooni tingimused'!$D$33,0)","v":0},{"$f":"IF(AND(Tehniline!$B$38,Tehniline!$B35),-'Lehm ja ratsiooni tingimused'!$D$33,0)","v":0},{"$f":"IF(AND(Tehniline!$B$39,Tehniline!$B35),-'Lehm ja ratsiooni tingimused'!$D$33,0)","v":0},{"$f":"IF(AND(Tehniline!$B$40,Tehniline!$B35),-'Lehm ja ratsiooni tingimused'!$D$33,0)","v":0},{"$f":"IF(AND(Tehniline!$B$41,Tehniline!$B35),-'Lehm ja ratsiooni tingimused'!$D$33,0)","v":0},{"$f":"IF(AND(Tehniline!$B$42,Tehniline!$B35),-'Lehm ja ratsiooni tingimused'!$D$33,0)","v":0},{"$f":"IF(AND(Tehniline!$B$43,Tehniline!$B35),-'Lehm ja ratsiooni tingimused'!$D$33,0)","v":0},{"$f":"IF(AND(Tehniline!$B$44,Tehniline!$B35),-'Lehm ja ratsiooni tingimused'!$D$33,0)","v":0},{"$f":"IF(AND(Tehniline!$B$45,Tehniline!$B35),-'Lehm ja ratsiooni tingimused'!$D$33,0)","v":0},{"$f":"IF(AND(Tehniline!$B$46,Tehniline!$B35),-'Lehm ja ratsiooni tingimused'!$D$33,0)","v":0},{"$f":"IF(AND(Tehniline!$B$47,Tehniline!$B35),-'Lehm ja ratsiooni tingimused'!$D$33,0)","v":0},{"$f":"IF(AND(Tehniline!$B$48,Tehniline!$B35),-'Lehm ja ratsiooni tingimused'!$D$33,0)","v":0},{"$f":"IF(AND(Tehniline!$B$49,Tehniline!$B35),-'Lehm ja ratsiooni tingimused'!$D$33,0)","v":0},{"$f":"IF(AND(Tehniline!$B$50,Tehniline!$B35),-'Lehm ja ratsiooni tingimused'!$D$33,0)","v":0},{"$f":"IF(AND(Tehniline!$B$51,Tehniline!$B35),-'Lehm ja ratsiooni tingimused'!$D$33,0)","v":0},{"$f":"IF(AND(Tehniline!$B$52,Tehniline!$B35),-'Lehm ja ratsiooni tingimused'!$D$33,0)","v":0},{"$f":"IF(AND(Tehniline!$B$53,Tehniline!$B35),-'Lehm ja ratsiooni tingimused'!$D$33,0)","v":0},{"$f":"IF(AND(Tehniline!$B$54,Tehniline!$B35),-'Lehm ja ratsiooni tingimused'!$D$33,0)","v":0},{"$f":"IF(AND(Tehniline!$B$55,Tehniline!$B35),-'Lehm ja ratsiooni tingimused'!$D$33,0)","v":0},{"$f":"IF(AND(Tehniline!$B$56,Tehniline!$B35),-'Lehm ja ratsiooni tingimused'!$D$33,0)","v":0}]
[null,"Teraviljad","Tritikale 275-20/21",0.15,0.86,13.9,27,105,-34,-34,0.5,0.5,3.5,140,null,600,null,null,null,null,null,null,1,-0.5,{"$f":"0-'Lehm ja ratsiooni tingimused'!$D$32","v":-0.5},null,null,null,null,null,null,null,null,null,null,null,null,null,null,null,null,null,null,null,null,null,null,{"$f":"IF(AND(Tehniline!$B$32,Tehniline!$B36),-'Lehm ja ratsiooni tingimused'!$D$33,0)","v":0},{"$f":"IF(AND(Tehniline!$B$33,Tehniline!$B36),-'Lehm ja ratsiooni tingimused'!$D$33,0)","v":0},{"$f":"IF(AND(Tehniline!$B$34,Tehniline!$B36),-'Lehm ja ratsiooni tingimused'!$D$33,0)","v":0},{"$f":"IF(AND(Tehniline!$B$35,Tehniline!$B36),-'Lehm ja ratsiooni tingimused'!$D$33,0)","v":0},{"$f":"1-'Lehm ja ratsiooni tingimused'!$D$33","v":1},{"$f":"IF(AND(Tehniline!$B$37,Tehniline!$B36),-'Lehm ja ratsiooni tingimused'!$D$33,0)","v":0},{"$f":"IF(AND(Tehniline!$B$38,Tehniline!$B36),-'Lehm ja ratsiooni tingimused'!$D$33,0)","v":0},{"$f":"IF(AND(Tehniline!$B$39,Tehniline!$B36),-'Lehm ja ratsiooni tingimused'!$D$33,0)","v":0},{"$f":"IF(AND(Tehniline!$B$40,Tehniline!$B36),-'Lehm ja ratsiooni tingimused'!$D$33,0)","v":0},{"$f":"IF(AND(Tehniline!$B$41,Tehniline!$B36),-'Lehm ja ratsiooni tingimused'!$D$33,0)","v":0},{"$f":"IF(AND(Tehniline!$B$42,Tehniline!$B36),-'Lehm ja ratsiooni tingimused'!$D$33,0)","v":0},{"$f":"IF(AND(Tehniline!$B$43,Tehniline!$B36),-'Lehm ja ratsiooni tingimused'!$D$33,0)","v":0},{"$f":"IF(AND(Tehniline!$B$44,Tehniline!$B36),-'Lehm ja ratsiooni tingimused'!$D$33,0)","v":0},{"$f":"IF(AND(Tehniline!$B$45,Tehniline!$B36),-'Lehm ja ratsiooni tingimused'!$D$33,0)","v":0},{"$f":"IF(AND(Tehniline!$B$46,Tehniline!$B36),-'Lehm ja ratsiooni tingimused'!$D$33,0)","v":0},{"$f":"IF(AND(Tehniline!$B$47,Tehniline!$B36),-'Lehm ja ratsiooni tingimused'!$D$33,0)","v":0},{"$f":"IF(AND(Tehniline!$B$48,Tehniline!$B36),-'Lehm ja ratsiooni tingimused'!$D$33,0)","v":0},{"$f":"IF(AND(Tehniline!$B$49,Tehniline!$B36),-'Lehm ja ratsiooni tingimused'!$D$33,0)","v":0},{"$f":"IF(AND(Tehniline!$B$50,Tehniline!$B36),-'Lehm ja ratsiooni tingimused'!$D$33,0)","v":0},{"$f":"IF(AND(Tehniline!$B$51,Tehniline!$B36),-'Lehm ja ratsiooni tingimused'!$D$33,0)","v":0},{"$f":"IF(AND(Tehniline!$B$52,Tehniline!$B36),-'Lehm ja ratsiooni tingimused'!$D$33,0)","v":0},{"$f":"IF(AND(Tehniline!$B$53,Tehniline!$B36),-'Lehm ja ratsiooni tingimused'!$D$33,0)","v":0},{"$f":"IF(AND(Tehniline!$B$54,Tehniline!$B36),-'Lehm ja ratsiooni tingimused'!$D$33,0)","v":0},{"$f":"IF(AND(Tehniline!$B$55,Tehniline!$B36),-'Lehm ja ratsiooni tingimused'!$D$33,0)","v":0},{"$f":"IF(AND(Tehniline!$B$56,Tehniline!$B36),-'Lehm ja ratsiooni tingimused'!$D$33,0)","v":0}]
[null,"Teraviljad","Kaerakliid 250-24",0.15,0.86,9.5,185,76,-28,-28,1.7,1.7,4.0999999999999996,95,null,600,null,null,null,null,null,null,1,-0.5,{"$f":"0-'Lehm ja ratsiooni tingimused'!$D$32","v":-0.5},null,null,null,null,null,null,null,null,null,null,null,null,null,null,null,null,null,null,null,null,null,null,{"$f":"IF(AND(Tehniline!$B$32,Tehniline!$B37),-'Lehm ja ratsiooni tingimused'!$D$33,0)","v":0},{"$f":"IF(AND(Tehniline!$B$33,Tehniline!$B37),-'Lehm ja ratsiooni tingimused'!$D$33,0)","v":0},{"$f":"IF(AND(Tehniline!$B$34,Tehniline!$B37),-'Lehm ja ratsiooni tingimused'!$D$33,0)","v":0},{"$f":"IF(AND(Tehniline!$B$35,Tehniline!$B37),-'Lehm ja ratsiooni tingimused'!$D$33,0)","v":0},{"$f":"IF(AND(Tehniline!$B$36,Tehniline!$B37),-'Lehm ja ratsiooni tingimused'!$D$33,0)","v":0},{"$f":"1-'Lehm ja ratsiooni tingimused'!$D$33","v":1},{"$f":"IF(AND(Tehniline!$B$38,Tehniline!$B37),-'Lehm ja ratsiooni tingimused'!$D$33,0)","v":0},{"$f":"IF(AND(Tehniline!$B$39,Tehniline!$B37),-'Lehm ja ratsiooni tingimused'!$D$33,0)","v":0},{"$f":"IF(AND(Tehniline!$B$40,Tehniline!$B37),-'Lehm ja ratsiooni tingimused'!$D$33,0)","v":0},{"$f":"IF(AND(Tehniline!$B$41,Tehniline!$B37),-'Lehm ja ratsiooni tingimused'!$D$33,0)","v":0},{"$f":"IF(AND(Tehniline!$B$42,Tehniline!$B37),-'Lehm ja ratsiooni tingimused'!$D$33,0)","v":0},{"$f":"IF(AND(Tehniline!$B$43,Tehniline!$B37),-'Lehm ja ratsiooni tingimused'!$D$33,0)","v":0},{"$f":"IF(AND(Tehniline!$B$44,Tehniline!$B37),-'Lehm ja ratsiooni tingimused'!$D$33,0)","v":0},{"$f":"IF(AND(Tehniline!$B$45,Tehniline!$B37),-'Lehm ja ratsiooni tingimused'!$D$33,0)","v":0},{"$f":"IF(AND(Tehniline!$B$46,Tehniline!$B37),-'Lehm ja ratsiooni tingimused'!$D$33,0)","v":0},{"$f":"IF(AND(Tehniline!$B$47,Tehniline!$B37),-'Lehm ja ratsiooni tingimused'!$D$33,0)","v":0},{"$f":"IF(AND(Tehniline!$B$48,Tehniline!$B37),-'Lehm ja ratsiooni tingimused'!$D$33,0)","v":0},{"$f":"IF(AND(Tehniline!$B$49,Tehniline!$B37),-'Lehm ja ratsiooni tingimused'!$D$33,0)","v":0},{"$f":"IF(AND(Tehniline!$B$50,Tehniline!$B37),-'Lehm ja ratsiooni tingimused'!$D$33,0)","v":0},{"$f":"IF(AND(Tehniline!$B$51,Tehniline!$B37),-'Lehm ja ratsiooni tingimused'!$D$33,0)","v":0},{"$f":"IF(AND(Tehniline!$B$52,Tehniline!$B37),-'Lehm ja ratsiooni tingimused'!$D$33,0)","v":0},{"$f":"IF(AND(Tehniline!$B$53,Tehniline!$B37),-'Lehm ja ratsiooni tingimused'!$D$33,0)","v":0},{"$f":"IF(AND(Tehniline!$B$54,Tehniline!$B37),-'Lehm ja ratsiooni tingimused'!$D$33,0)","v":0},{"$f":"IF(AND(Tehniline!$B$55,Tehniline!$B37),-'Lehm ja ratsiooni tingimused'!$D$33,0)","v":0},{"$f":"IF(AND(Tehniline!$B$56,Tehniline!$B37),-'Lehm ja ratsiooni tingimused'!$D$33,0)","v":0}]
[null,"Teraviljad","Odrakliid 255-24",0.15,0.86,10.8,155,86,-10,-10,1.6,1.6,4.3,130,null,600,null,null,null,null,null,null,1,-0.5,{"$f":"0-'Lehm ja ratsiooni tingimused'!$D$32","v":-0.5},null,null,null,null,null,null,null,null,null,null,null,null,null,null,null,null,null,null,null,null,null,null,{"$f":"IF(AND(Tehniline!$B$32,Tehniline!$B38),-'Lehm ja ratsiooni tingimused'!$D$33,0)","v":0},{"$f":"IF(AND(Tehniline!$B$33,Tehniline!$B38),-'Lehm ja ratsiooni tingimused'!$D$33,0)","v":0},{"$f":"IF(AND(Tehniline!$B$34,Tehniline!$B38),-'Lehm ja ratsiooni tingimused'!$D$33,0)","v":0},{"$f":"IF(AND(Tehniline!$B$35,Tehniline!$B38),-'Lehm ja ratsiooni tingimused'!$D$33,0)","v":0},{"$f":"IF(AND(Tehniline!$B$36,Tehniline!$B38),-'Lehm ja ratsiooni tingimused'!$D$33,0)","v":0},{"$f":"IF(AND(Tehniline!$B$37,Tehniline!$B38),-'Lehm ja ratsiooni tingimused'!$D$33,0)","v":0},{"$f":"1-'Lehm ja ratsiooni tingimused'!$D$33","v":1},{"$f":"IF(AND(Tehniline!$B$39,Tehniline!$B38),-'Lehm ja ratsiooni tingimused'!$D$33,0)","v":0},{"$f":"IF(AND(Tehniline!$B$40,Tehniline!$B38),-'Lehm ja ratsiooni tingimused'!$D$33,0)","v":0},{"$f":"IF(AND(Tehniline!$B$41,Tehniline!$B38),-'Lehm ja ratsiooni tingimused'!$D$33,0)","v":0},{"$f":"IF(AND(Tehniline!$B$42,Tehniline!$B38),-'Lehm ja ratsiooni tingimused'!$D$33,0)","v":0},{"$f":"IF(AND(Tehniline!$B$43,Tehniline!$B38),-'Lehm ja ratsiooni tingimused'!$D$33,0)","v":0},{"$f":"IF(AND(Tehniline!$B$44,Tehniline!$B38),-'Lehm ja ratsiooni tingimused'!$D$33,0)","v":0},{"$f":"IF(AND(Tehniline!$B$45,Tehniline!$B38),-'Lehm ja ratsiooni tingimused'!$D$33,0)","v":0},{"$f":"IF(AND(Tehniline!$B$46,Tehniline!$B38),-'Lehm ja ratsiooni tingimused'!$D$33,0)","v":0},{"$f":"IF(AND(Tehniline!$B$47,Tehniline!$B38),-'Lehm ja ratsiooni tingimused'!$D$33,0)","v":0},{"$f":"IF(AND(Tehniline!$B$48,Tehniline!$B38),-'Lehm ja ratsiooni tingimused'!$D$33,0)","v":0},{"$f":"IF(AND(Tehniline!$B$49,Tehniline!$B38),-'Lehm ja ratsiooni tingimused'!$D$33,0)","v":0},{"$f":"IF(AND(Tehniline!$B$50,Tehniline!$B38),-'Lehm ja ratsiooni tingimused'!$D$33,0)","v":0},{"$f":"IF(AND(Tehniline!$B$51,Tehniline!$B38),-'Lehm ja ratsiooni tingimused'!$D$33,0)","v":0},{"$f":"IF(AND(Tehniline!$B$52,Tehniline!$B38),-'Lehm ja ratsiooni tingimused'!$D$33,0)","v":0},{"$f":"IF(AND(Tehniline!$B$53,Tehniline!$B38),-'Lehm ja ratsiooni tingimused'!$D$33,0)","v":0},{"$f":"IF(AND(Tehniline!$B$54,Tehniline!$B38),-'Lehm ja ratsiooni tingimused'!$D$33,0)","v":0},{"$f":"IF(AND(Tehniline!$B$55,Tehniline!$B38),-'Lehm ja ratsiooni tingimused'!$D$33,0)","v":0},{"$f":"IF(AND(Tehniline!$B$56,Tehniline!$B38),-'Lehm ja ratsiooni tingimused'!$D$33,0)","v":0}]
[null,"Teraviljad","Rukkikliid 270-24",0.15,0.86,10.8,100,92,10,10,1.4,1.4,10.199999999999999,160,null,600,null,null,null,null,null,null,1,-0.5,{"$f":"0-'Lehm ja ratsiooni tingimused'!$D$32","v":-0.5},null,null,null,null,null,null,null,null,null,null,null,null,null,null,null,null,null,null,null,null,null,null,{"$f":"IF(AND(Tehniline!$B$32,Tehniline!$B39),-'Lehm ja ratsiooni tingimused'!$D$33,0)","v":0},{"$f":"IF(AND(Tehniline!$B$33,Tehniline!$B39),-'Lehm ja ratsiooni tingimused'!$D$33,0)","v":0},{"$f":"IF(AND(Tehniline!$B$34,Tehniline!$B39),-'Lehm ja ratsiooni tingimused'!$D$33,0)","v":0},{"$f":"IF(AND(Tehniline!$B$35,Tehniline!$B39),-'Lehm ja ratsiooni tingimused'!$D$33,0)","v":0},{"$f":"IF(AND(Tehniline!$B$36,Tehniline!$B39),-'Lehm ja ratsiooni tingimused'!$D$33,0)","v":0},{"$f":"IF(AND(Tehniline!$B$37,Tehniline!$B39),-'Lehm ja ratsiooni tingimused'!$D$33,0)","v":0},{"$f":"IF(AND(Tehniline!$B$38,Tehniline!$B39),-'Lehm ja ratsiooni tingimused'!$D$33,0)","v":0},{"$f":"1-'Lehm ja ratsiooni tingimused'!$D$33","v":1},{"$f":"IF(AND(Tehniline!$B$40,Tehniline!$B39),-'Lehm ja ratsiooni tingimused'!$D$33,0)","v":0},{"$f":"IF(AND(Tehniline!$B$41,Tehniline!$B39),-'Lehm ja ratsiooni tingimused'!$D$33,0)","v":0},{"$f":"IF(AND(Tehniline!$B$42,Tehniline!$B39),-'Lehm ja ratsiooni tingimused'!$D$33,0)","v":0},{"$f":"IF(AND(Tehniline!$B$43,Tehniline!$B39),-'Lehm ja ratsiooni tingimused'!$D$33,0)","v":0},{"$f":"IF(AND(Tehniline!$B$44,Tehniline!$B39),-'Lehm ja ratsiooni tingimused'!$D$33,0)","v":0},{"$f":"IF(AND(Tehniline!$B$45,Tehniline!$B39),-'Lehm ja ratsiooni tingimused'!$D$33,0)","v":0},{"$f":"IF(AND(Tehniline!$B$46,Tehniline!$B39),-'Lehm ja ratsiooni tingimused'!$D$33,0)","v":0},{"$f":"IF(AND(Tehniline!$B$47,Tehniline!$B39),-'Lehm ja ratsiooni tingimused'!$D$33,0)","v":0},{"$f":"IF(AND(Tehniline!$B$48,Tehniline!$B39),-'Lehm ja ratsiooni tingimused'!$D$33,0)","v":0},{"$f":"IF(AND(Tehniline!$B$49,Tehniline!$B39),-'Lehm ja ratsiooni tingimused'!$D$33,0)","v":0},{"$f":"IF(AND(Tehniline!$B$50,Tehniline!$B39),-'Lehm ja ratsiooni tingimused'!$D$33,0)","v":0},{"$f":"IF(AND(Tehniline!$B$51,Tehniline!$B39),-'Lehm ja ratsiooni tingimused'!$D$33,0)","v":0},{"$f":"IF(AND(Tehniline!$B$52,Tehniline!$B39),-'Lehm ja ratsiooni tingimused'!$D$33,0)","v":0},{"$f":"IF(AND(Tehniline!$B$53,Tehniline!$B39),-'Lehm ja ratsiooni tingimused'!$D$33,0)","v":0},{"$f":"IF(AND(Tehniline!$B$54,Tehniline!$B39),-'Lehm ja ratsiooni tingimused'!$D$33,0)","v":0},{"$f":"IF(AND(Tehniline!$B$55,Tehniline!$B39),-'Lehm ja ratsiooni tingimused'!$D$33,0)","v":0},{"$f":"IF(AND(Tehniline!$B$56,Tehniline!$B39),-'Lehm ja ratsiooni tingimused'!$D$33,0)","v":0}]
[null,"Teraviljad","Hernes 150-20/21",0.15,0.86,13.7,67,123,52,52,1.3,1.3,4.5,250,null,600,76,116,null,null,null,null,1,-0.5,{"$f":"0-'Lehm ja ratsiooni tingimused'!$D$32","v":-0.5},null,null,null,null,null,null,null,null,null,null,null,null,null,null,null,null,null,null,null,null,null,null,{"$f":"IF(AND(Tehniline!$B$32,Tehniline!$B40),-'Lehm ja ratsiooni tingimused'!$D$33,0)","v":0},{"$f":"IF(AND(Tehniline!$B$33,Tehniline!$B40),-'Lehm ja ratsiooni tingimused'!$D$33,0)","v":0},{"$f":"IF(AND(Tehniline!$B$34,Tehniline!$B40),-'Lehm ja ratsiooni tingimused'!$D$33,0)","v":0},{"$f":"IF(AND(Tehniline!$B$35,Tehniline!$B40),-'Lehm ja ratsiooni tingimused'!$D$33,0)","v":0},{"$f":"IF(AND(Tehniline!$B$36,Tehniline!$B40),-'Lehm ja ratsiooni tingimused'!$D$33,0)","v":0},{"$f":"IF(AND(Tehniline!$B$37,Tehniline!$B40),-'Lehm ja ratsiooni tingimused'!$D$33,0)","v":0},{"$f":"IF(AND(Tehniline!$B$38,Tehniline!$B40),-'Lehm ja ratsiooni tingimused'!$D$33,0)","v":0},{"$f":"IF(AND(Tehniline!$B$39,Tehniline!$B40),-'Lehm ja ratsiooni tingimused'!$D$33,0)","v":0},{"$f":"1-'Lehm ja ratsiooni tingimused'!$D$33","v":1},{"$f":"IF(AND(Tehniline!$B$41,Tehniline!$B40),-'Lehm ja ratsiooni tingimused'!$D$33,0)","v":0},{"$f":"IF(AND(Tehniline!$B$42,Tehniline!$B40),-'Lehm ja ratsiooni tingimused'!$D$33,0)","v":0},{"$f":"IF(AND(Tehniline!$B$43,Tehniline!$B40),-'Lehm ja ratsiooni tingimused'!$D$33,0)","v":0},{"$f":"IF(AND(Tehniline!$B$44,Tehniline!$B40),-'Lehm ja ratsiooni tingimused'!$D$33,0)","v":0},{"$f":"IF(AND(Tehniline!$B$45,Tehniline!$B40),-'Lehm ja ratsiooni tingimused'!$D$33,0)","v":0},{"$f":"IF(AND(Tehniline!$B$46,Tehniline!$B40),-'Lehm ja ratsiooni tingimused'!$D$33,0)","v":0},{"$f":"IF(AND(Tehniline!$B$47,Tehniline!$B40),-'Lehm ja ratsiooni tingimused'!$D$33,0)","v":0},{"$f":"IF(AND(Tehniline!$B$48,Tehniline!$B40),-'Lehm ja ratsiooni tingimused'!$D$33,0)","v":0},{"$f":"IF(AND(Tehniline!$B$49,Tehniline!$B40),-'Lehm ja ratsiooni tingimused'!$D$33,0)","v":0},{"$f":"IF(AND(Tehniline!$B$50,Tehniline!$B40),-'Lehm ja ratsiooni tingimused'!$D$33,0)","v":0},{"$f":"IF(AND(Tehniline!$B$51,Tehniline!$B40),-'Lehm ja ratsiooni tingimused'!$D$33,0)","v":0},{"$f":"IF(AND(Tehniline!$B$52,Tehniline!$B40),-'Lehm ja ratsiooni tingimused'!$D$33,0)","v":0},{"$f":"IF(AND(Tehniline!$B$53,Tehniline!$B40),-'Lehm ja ratsiooni tingimused'!$D$33,0)","v":0},{"$f":"IF(AND(Tehniline!$B$54,Tehniline!$B40),-'Lehm ja ratsiooni tingimused'!$D$33,0)","v":0},{"$f":"IF(AND(Tehniline!$B$55,Tehniline!$B40),-'Lehm ja ratsiooni tingimused'!$D$33,0)","v":0},{"$f":"IF(AND(Tehniline!$B$56,Tehniline!$B40),-'Lehm ja ratsiooni tingimused'!$D$33,0)","v":0}]
[null,"Teraviljad","Konservvili 2677 nisu",0.15,0.63400000000000001,13.8,40,93,-59,-59,0.9,0.9,3.9,null,null,600,null,null,null,null,null,null,1,-0.5,{"$f":"0-'Lehm ja ratsiooni tingimused'!$D$32","v":-0.5},null,null,null,null,null,null,null,null,null,null,null,null,null,null,null,null,null,null,null,null,null,null,{"$f":"IF(AND(Tehniline!$B$32,Tehniline!$B41),-'Lehm ja ratsiooni tingimused'!$D$33,0)","v":0},{"$f":"IF(AND(Tehniline!$B$33,Tehniline!$B41),-'Lehm ja ratsiooni tingimused'!$D$33,0)","v":0},{"$f":"IF(AND(Tehniline!$B$34,Tehniline!$B41),-'Lehm ja ratsiooni tingimused'!$D$33,0)","v":0},{"$f":"IF(AND(Tehniline!$B$35,Tehniline!$B41),-'Lehm ja ratsiooni tingimused'!$D$33,0)","v":0},{"$f":"IF(AND(Tehniline!$B$36,Tehniline!$B41),-'Lehm ja ratsiooni tingimused'!$D$33,0)","v":0},{"$f":"IF(AND(Tehniline!$B$37,Tehniline!$B41),-'Lehm ja ratsiooni tingimused'!$D$33,0)","v":0},{"$f":"IF(AND(Tehniline!$B$38,Tehniline!$B41),-'Lehm ja ratsiooni tingimused'!$D$33,0)","v":0},{"$f":"IF(AND(Tehniline!$B$39,Tehniline!$B41),-'Lehm ja ratsiooni tingimused'!$D$33,0)","v":0},{"$f":"IF(AND(Tehniline!$B$40,Tehniline!$B41),-'Lehm ja ratsiooni tingimused'!$D$33,0)","v":0},{"$f":"1-'Lehm ja ratsiooni tingimused'!$D$33","v":1},{"$f":"IF(AND(Tehniline!$B$42,Tehniline!$B41),-'Lehm ja ratsiooni tingimused'!$D$33,0)","v":0},{"$f":"IF(AND(Tehniline!$B$43,Tehniline!$B41),-'Lehm ja ratsiooni tingimused'!$D$33,0)","v":0},{"$f":"IF(AND(Tehniline!$B$44,Tehniline!$B41),-'Lehm ja ratsiooni tingimused'!$D$33,0)","v":0},{"$f":"IF(AND(Tehniline!$B$45,Tehniline!$B41),-'Lehm ja ratsiooni tingimused'!$D$33,0)","v":0},{"$f":"IF(AND(Tehniline!$B$46,Tehniline!$B41),-'Lehm ja ratsiooni tingimused'!$D$33,0)","v":0},{"$f":"IF(AND(Tehniline!$B$47,Tehniline!$B41),-'Lehm ja ratsiooni tingimused'!$D$33,0)","v":0},{"$f":"IF(AND(Tehniline!$B$48,Tehniline!$B41),-'Lehm ja ratsiooni tingimused'!$D$33,0)","v":0},{"$f":"IF(AND(Tehniline!$B$49,Tehniline!$B41),-'Lehm ja ratsiooni tingimused'!$D$33,0)","v":0},{"$f":"IF(AND(Tehniline!$B$50,Tehniline!$B41),-'Lehm ja ratsiooni tingimused'!$D$33,0)","v":0},{"$f":"IF(AND(Tehniline!$B$51,Tehniline!$B41),-'Lehm ja ratsiooni tingimused'!$D$33,0)","v":0},{"$f":"IF(AND(Tehniline!$B$52,Tehniline!$B41),-'Lehm ja ratsiooni tingimused'!$D$33,0)","v":0},{"$f":"IF(AND(Tehniline!$B$53,Tehniline!$B41),-'Lehm ja ratsiooni tingimused'!$D$33,0)","v":0},{"$f":"IF(AND(Tehniline!$B$54,Tehniline!$B41),-'Lehm ja ratsiooni tingimused'!$D$33,0)","v":0},{"$f":"IF(AND(Tehniline!$B$55,Tehniline!$B41),-'Lehm ja ratsiooni tingimused'!$D$33,0)","v":0},{"$f":"IF(AND(Tehniline!$B$56,Tehniline!$B41),-'Lehm ja ratsiooni tingimused'!$D$33,0)","v":0}]
[null,"Teraviljad","Muljutud konserveeritud kaer 250-22",0.15,0.65,12,117,92,-18,-18,1.2,1.2,3.5,130,null,630,137,313,null,null,null,null,1,-0.5,{"$f":"0-'Lehm ja ratsiooni tingimused'!$D$32","v":-0.5},null,null,null,null,null,null,null,null,null,null,null,null,null,null,null,null,null,null,null,null,null,null,{"$f":"IF(AND(Tehniline!$B$32,Tehniline!$B42),-'Lehm ja ratsiooni tingimused'!$D$33,0)","v":0},{"$f":"IF(AND(Tehniline!$B$33,Tehniline!$B42),-'Lehm ja ratsiooni tingimused'!$D$33,0)","v":0},{"$f":"IF(AND(Tehniline!$B$34,Tehniline!$B42),-'Lehm ja ratsiooni tingimused'!$D$33,0)","v":0},{"$f":"IF(AND(Tehniline!$B$35,Tehniline!$B42),-'Lehm ja ratsiooni tingimused'!$D$33,0)","v":0},{"$f":"IF(AND(Tehniline!$B$36,Tehniline!$B42),-'Lehm ja ratsiooni tingimused'!$D$33,0)","v":0},{"$f":"IF(AND(Tehniline!$B$37,Tehniline!$B42),-'Lehm ja ratsiooni tingimused'!$D$33,0)","v":0},{"$f":"IF(AND(Tehniline!$B$38,Tehniline!$B42),-'Lehm ja ratsiooni tingimused'!$D$33,0)","v":0},{"$f":"IF(AND(Tehniline!$B$39,Tehniline!$B42),-'Lehm ja ratsiooni tingimused'!$D$33,0)","v":0},{"$f":"IF(AND(Tehniline!$B$40,Tehniline!$B42),-'Lehm ja ratsiooni tingimused'!$D$33,0)","v":0},{"$f":"IF(AND(Tehniline!$B$41,Tehniline!$B42),-'Lehm ja ratsiooni tingimused'!$D$33,0)","v":0},{"$f":"1-'Lehm ja ratsiooni tingimused'!$D$33","v":1},{"$f":"IF(AND(Tehniline!$B$43,Tehniline!$B42),-'Lehm ja ratsiooni tingimused'!$D$33,0)","v":0},{"$f":"IF(AND(Tehniline!$B$44,Tehniline!$B42),-'Lehm ja ratsiooni tingimused'!$D$33,0)","v":0},{"$f":"IF(AND(Tehniline!$B$45,Tehniline!$B42),-'Lehm ja ratsiooni tingimused'!$D$33,0)","v":0},{"$f":"IF(AND(Tehniline!$B$46,Tehniline!$B42),-'Lehm ja ratsiooni tingimused'!$D$33,0)","v":0},{"$f":"IF(AND(Tehniline!$B$47,Tehniline!$B42),-'Lehm ja ratsiooni tingimused'!$D$33,0)","v":0},{"$f":"IF(AND(Tehniline!$B$48,Tehniline!$B42),-'Lehm ja ratsiooni tingimused'!$D$33,0)","v":0},{"$f":"IF(AND(Tehniline!$B$49,Tehniline!$B42),-'Lehm ja ratsiooni tingimused'!$D$33,0)","v":0},{"$f":"IF(AND(Tehniline!$B$50,Tehniline!$B42),-'Lehm ja ratsiooni tingimused'!$D$33,0)","v":0},{"$f":"IF(AND(Tehniline!$B$51,Tehniline!$B42),-'Lehm ja ratsiooni tingimused'!$D$33,0)","v":0},{"$f":"IF(AND(Tehniline!$B$52,Tehniline!$B42),-'Lehm ja ratsiooni tingimused'!$D$33,0)","v":0},{"$f":"IF(AND(Tehniline!$B$53,Tehniline!$B42),-'Lehm ja ratsiooni tingimused'!$D$33,0)","v":0},{"$f":"IF(AND(Tehniline!$B$54,Tehniline!$B42),-'Lehm ja ratsiooni tingimused'!$D$33,0)","v":0},{"$f":"IF(AND(Tehniline!$B$55,Tehniline!$B42),-'Lehm ja ratsiooni tingimused'!$D$33,0)","v":0},{"$f":"IF(AND(Tehniline!$B$56,Tehniline!$B42),-'Lehm ja ratsiooni tingimused'!$D$33,0)","v":0}]
[null,"Teraviljad","Muljutud konserveeritud oder 255-22",0.15,0.65,12.9,68,102,-41,-41,0.8,0.8,3.6,126,null,630,78,235,null,null,null,null,1,-0.5,{"$f":"0-'Lehm ja ratsiooni tingimused'!$D$32","v":-0.5},null,null,null,null,null,null,null,null,null,null,null,null,null,null,null,null,null,null,null,null,null,null,{"$f":"IF(AND(Tehniline!$B$32,Tehniline!$B43),-'Lehm ja ratsiooni tingimused'!$D$33,0)","v":0},{"$f":"IF(AND(Tehniline!$B$33,Tehniline!$B43),-'Lehm ja ratsiooni tingimused'!$D$33,0)","v":0},{"$f":"IF(AND(Tehniline!$B$34,Tehniline!$B43),-'Lehm ja ratsiooni tingimused'!$D$33,0)","v":0},{"$f":"IF(AND(Tehniline!$B$35,Tehniline!$B43),-'Lehm ja ratsiooni tingimused'!$D$33,0)","v":0},{"$f":"IF(AND(Tehniline!$B$36,Tehniline!$B43),-'Lehm ja ratsiooni tingimused'!$D$33,0)","v":0},{"$f":"IF(AND(Tehniline!$B$37,Tehniline!$B43),-'Lehm ja ratsiooni tingimused'!$D$33,0)","v":0},{"$f":"IF(AND(Tehniline!$B$38,Tehniline!$B43),-'Lehm ja ratsiooni tingimused'!$D$33,0)","v":0},{"$f":"IF(AND(Tehniline!$B$39,Tehniline!$B43),-'Lehm ja ratsiooni tingimused'!$D$33,0)","v":0},{"$f":"IF(AND(Tehniline!$B$40,Tehniline!$B43),-'Lehm ja ratsiooni tingimused'!$D$33,0)","v":0},{"$f":"IF(AND(Tehniline!$B$41,Tehniline!$B43),-'Lehm ja ratsiooni tingimused'!$D$33,0)","v":0},{"$f":"IF(AND(Tehniline!$B$42,Tehniline!$B43),-'Lehm ja ratsiooni tingimused'!$D$33,0)","v":0},{"$f":"1-'Lehm ja ratsiooni tingimused'!$D$33","v":1},{"$f":"IF(AND(Tehniline!$B$44,Tehniline!$B43),-'Lehm ja ratsiooni tingimused'!$D$33,0)","v":0},{"$f":"IF(AND(Tehniline!$B$45,Tehniline!$B43),-'Lehm ja ratsiooni tingimused'!$D$33,0)","v":0},{"$f":"IF(AND(Tehniline!$B$46,Tehniline!$B43),-'Lehm ja ratsiooni tingimused'!$D$33,0)","v":0},{"$f":"IF(AND(Tehniline!$B$47,Tehniline!$B43),-'Lehm ja ratsiooni tingimused'!$D$33,0)","v":0},{"$f":"IF(AND(Tehniline!$B$48,Tehniline!$B43),-'Lehm ja ratsiooni tingimused'!$D$33,0)","v":0},{"$f":"IF(AND(Tehniline!$B$49,Tehniline!$B43),-'Lehm ja ratsiooni tingimused'!$D$33,0)","v":0},{"$f":"IF(AND(Tehniline!$B$50,Tehniline!$B43),-'Lehm ja ratsiooni tingimused'!$D$33,0)","v":0},{"$f":"IF(AND(Tehniline!$B$51,Tehniline!$B43),-'Lehm ja ratsiooni tingimused'!$D$33,0)","v":0},{"$f":"IF(AND(Tehniline!$B$52,Tehniline!$B43),-'Lehm ja ratsiooni tingimused'!$D$33,0)","v":0},{"$f":"IF(AND(Tehniline!$B$53,Tehniline!$B43),-'Lehm ja ratsiooni tingimused'!$D$33,0)","v":0},{"$f":"IF(AND(Tehniline!$B$54,Tehniline!$B43),-'Lehm ja ratsiooni tingimused'!$D$33,0)","v":0},{"$f":"IF(AND(Tehniline!$B$55,Tehniline!$B43),-'Lehm ja ratsiooni tingimused'!$D$33,0)","v":0},{"$f":"IF(AND(Tehniline!$B$56,Tehniline!$B43),-'Lehm ja ratsiooni tingimused'!$D$33,0)","v":0}]
[null,"Teraviljad",null,null,null,null,null,null,null,0,null,0,null,null,null,null,null,null,null,null,null,null,1,-0.5,{"$f":"0-'Lehm ja ratsiooni tingimused'!$D$32","v":-0.5},null,null,null,null,null,null,null,null,null,null,null,null,null,null,null,null,null,null,null,null,null,null,{"$f":"IF(AND(Tehniline!$B$32,Tehniline!$B44),-'Lehm ja ratsiooni tingimused'!$D$33,0)","v":0},{"$f":"IF(AND(Tehniline!$B$33,Tehniline!$B44),-'Lehm ja ratsiooni tingimused'!$D$33,0)","v":0},{"$f":"IF(AND(Tehniline!$B$34,Tehniline!$B44),-'Lehm ja ratsiooni tingimused'!$D$33,0)","v":0},{"$f":"IF(AND(Tehniline!$B$35,Tehniline!$B44),-'Lehm ja ratsiooni tingimused'!$D$33,0)","v":0},{"$f":"IF(AND(Tehniline!$B$36,Tehniline!$B44),-'Lehm ja ratsiooni tingimused'!$D$33,0)","v":0},{"$f":"IF(AND(Tehniline!$B$37,Tehniline!$B44),-'Lehm ja ratsiooni tingimused'!$D$33,0)","v":0},{"$f":"IF(AND(Tehniline!$B$38,Tehniline!$B44),-'Lehm ja ratsiooni tingimused'!$D$33,0)","v":0},{"$f":"IF(AND(Tehniline!$B$39,Tehniline!$B44),-'Lehm ja ratsiooni tingimused'!$D$33,0)","v":0},{"$f":"IF(AND(Tehniline!$B$40,Tehniline!$B44),-'Lehm ja ratsiooni tingimused'!$D$33,0)","v":0},{"$f":"IF(AND(Tehniline!$B$41,Tehniline!$B44),-'Lehm ja ratsiooni tingimused'!$D$33,0)","v":0},{"$f":"IF(AND(Tehniline!$B$42,Tehniline!$B44),-'Lehm ja ratsiooni tingimused'!$D$33,0)","v":0},{"$f":"IF(AND(Tehniline!$B$43,Tehniline!$B44),-'Lehm ja ratsiooni tingimused'!$D$33,0)","v":0},{"$f":"1-'Lehm ja ratsiooni tingimused'!$D$33","v":1},{"$f":"IF(AND(Tehniline!$B$45,Tehniline!$B44),-'Lehm ja ratsiooni tingimused'!$D$33,0)","v":0},{"$f":"IF(AND(Tehniline!$B$46,Tehniline!$B44),-'Lehm ja ratsiooni tingimused'!$D$33,0)","v":0},{"$f":"IF(AND(Tehniline!$B$47,Tehniline!$B44),-'Lehm ja ratsiooni tingimused'!$D$33,0)","v":0},{"$f":"IF(AND(Tehniline!$B$48,Tehniline!$B44),-'Lehm ja ratsiooni tingimused'!$D$33,0)","v":0},{"$f":"IF(AND(Tehniline!$B$49,Tehniline!$B44),-'Lehm ja ratsiooni tingimused'!$D$33,0)","v":0},{"$f":"IF(AND(Tehniline!$B$50,Tehniline!$B44),-'Lehm ja ratsiooni tingimused'!$D$33,0)","v":0},{"$f":"IF(AND(Tehniline!$B$51,Tehniline!$B44),-'Lehm ja ratsiooni tingimused'!$D$33,0)","v":0},{"$f":"IF(AND(Tehniline!$B$52,Tehniline!$B44),-'Lehm ja ratsiooni tingimused'!$D$33,0)","v":0},{"$f":"IF(AND(Tehniline!$B$53,Tehniline!$B44),-'Lehm ja ratsiooni tingimused'!$D$33,0)","v":0},{"$f":"IF(AND(Tehniline!$B$54,Tehniline!$B44),-'Lehm ja ratsiooni tingimused'!$D$33,0)","v":0},{"$f":"IF(AND(Tehniline!$B$55,Tehniline!$B44),-'Lehm ja ratsiooni tingimused'!$D$33,0)","v":0},{"$f":"IF(AND(Tehniline!$B$56,Tehniline!$B44),-'Lehm ja ratsiooni tingimused'!$D$33,0)","v":0}]
[null,"Teraviljad",null,null,null,null,null,null,null,0,null,0,null,null,null,null,null,null,null,null,null,null,1,-0.5,{"$f":"0-'Lehm ja ratsiooni tingimused'!$D$32","v":-0.5},null,null,null,null,null,null,null,null,null,null,null,null,null,null,null,null,null,null,null,null,null,null,{"$f":"IF(AND(Tehniline!$B$32,Tehniline!$B45),-'Lehm ja ratsiooni tingimused'!$D$33,0)","v":0},{"$f":"IF(AND(Tehniline!$B$33,Tehniline!$B45),-'Lehm ja ratsiooni tingimused'!$D$33,0)","v":0},{"$f":"IF(AND(Tehniline!$B$34,Tehniline!$B45),-'Lehm ja ratsiooni tingimused'!$D$33,0)","v":0},{"$f":"IF(AND(Tehniline!$B$35,Tehniline!$B45),-'Lehm ja ratsiooni tingimused'!$D$33,0)","v":0},{"$f":"IF(AND(Tehniline!$B$36,Tehniline!$B45),-'Lehm ja ratsiooni tingimused'!$D$33,0)","v":0},{"$f":"IF(AND(Tehniline!$B$37,Tehniline!$B45),-'Lehm ja ratsiooni tingimused'!$D$33,0)","v":0},{"$f":"IF(AND(Tehniline!$B$38,Tehniline!$B45),-'Lehm ja ratsiooni tingimused'!$D$33,0)","v":0},{"$f":"IF(AND(Tehniline!$B$39,Tehniline!$B45),-'Lehm ja ratsiooni tingimused'!$D$33,0)","v":0},{"$f":"IF(AND(Tehniline!$B$40,Tehniline!$B45),-'Lehm ja ratsiooni tingimused'!$D$33,0)","v":0},{"$f":"IF(AND(Tehniline!$B$41,Tehniline!$B45),-'Lehm ja ratsiooni tingimused'!$D$33,0)","v":0},{"$f":"IF(AND(Tehniline!$B$42,Tehniline!$B45),-'Lehm ja ratsiooni tingimused'!$D$33,0)","v":0},{"$f":"IF(AND(Tehniline!$B$43,Tehniline!$B45),-'Lehm ja ratsiooni tingimused'!$D$33,0)","v":0},{"$f":"IF(AND(Tehniline!$B$44,Tehniline!$B45),-'Lehm ja ratsiooni tingimused'!$D$33,0)","v":0},{"$f":"1-'Lehm ja ratsiooni tingimused'!$D$33","v":1},{"$f":"IF(AND(Tehniline!$B$46,Tehniline!$B45),-'Lehm ja ratsiooni tingimused'!$D$33,0)","v":0},{"$f":"IF(AND(Tehniline!$B$47,Tehniline!$B45),-'Lehm ja ratsiooni tingimused'!$D$33,0)","v":0},{"$f":"IF(AND(Tehniline!$B$48,Tehniline!$B45),-'Lehm ja ratsiooni tingimused'!$D$33,0)","v":0},{"$f":"IF(AND(Tehniline!$B$49,Tehniline!$B45),-'Lehm ja ratsiooni tingimused'!$D$33,0)","v":0},{"$f":"IF(AND(Tehniline!$B$50,Tehniline!$B45),-'Lehm ja ratsiooni tingimused'!$D$33,0)","v":0},{"$f":"IF(AND(Tehniline!$B$51,Tehniline!$B45),-'Lehm ja ratsiooni tingimused'!$D$33,0)","v":0},{"$f":"IF(AND(Tehniline!$B$52,Tehniline!$B45),-'Lehm ja ratsiooni tingimused'!$D$33,0)","v":0},{"$f":"IF(AND(Tehniline!$B$53,Tehniline!$B45),-'Lehm ja ratsiooni tingimused'!$D$33,0)","v":0},{"$f":"IF(AND(Tehniline!$B$54,Tehniline!$B45),-'Lehm ja ratsiooni tingimused'!$D$33,0)","v":0},{"$f":"IF(AND(Tehniline!$B$55,Tehniline!$B45),-'Lehm ja ratsiooni tingimused'!$D$33,0)","v":0},{"$f":"IF(AND(Tehniline!$B$56,Tehniline!$B45),-'Lehm ja ratsiooni tingimused'!$D$33,0)","v":0}]
[null,"Teraviljad",null,null,null,null,null,null,null,0,null,0,null,null,null,null,null,null,null,null,null,null,1,-0.5,{"$f":"0-'Lehm ja ratsiooni tingimused'!$D$32","v":-0.5},null,null,null,null,null,null,null,null,null,null,null,null,null,null,null,null,null,null,null,null,null,null,{"$f":"IF(AND(Tehniline!$B$32,Tehniline!$B46),-'Lehm ja ratsiooni tingimused'!$D$33,0)","v":0},{"$f":"IF(AND(Tehniline!$B$33,Tehniline!$B46),-'Lehm ja ratsiooni tingimused'!$D$33,0)","v":0},{"$f":"IF(AND(Tehniline!$B$34,Tehniline!$B46),-'Lehm ja ratsiooni tingimused'!$D$33,0)","v":0},{"$f":"IF(AND(Tehniline!$B$35,Tehniline!$B46),-'Lehm ja ratsiooni tingimused'!$D$33,0)","v":0},{"$f":"IF(AND(Tehniline!$B$36,Tehniline!$B46),-'Lehm ja ratsiooni tingimused'!$D$33,0)","v":0},{"$f":"IF(AND(Tehniline!$B$37,Tehniline!$B46),-'Lehm ja ratsiooni tingimused'!$D$33,0)","v":0},{"$f":"IF(AND(Tehniline!$B$38,Tehniline!$B46),-'Lehm ja ratsiooni tingimused'!$D$33,0)","v":0},{"$f":"IF(AND(Tehniline!$B$39,Tehniline!$B46),-'Lehm ja ratsiooni tingimused'!$D$33,0)","v":0},{"$f":"IF(AND(Tehniline!$B$40,Tehniline!$B46),-'Lehm ja ratsiooni tingimused'!$D$33,0)","v":0},{"$f":"IF(AND(Tehniline!$B$41,Tehniline!$B46),-'Lehm ja ratsiooni tingimused'!$D$33,0)","v":0},{"$f":"IF(AND(Tehniline!$B$42,Tehniline!$B46),-'Lehm ja ratsiooni tingimused'!$D$33,0)","v":0},{"$f":"IF(AND(Tehniline!$B$43,Tehniline!$B46),-'Lehm ja ratsiooni tingimused'!$D$33,0)","v":0},{"$f":"IF(AND(Tehniline!$B$44,Tehniline!$B46),-'Lehm ja ratsiooni tingimused'!$D$33,0)","v":0},{"$f":"IF(AND(Tehniline!$B$45,Tehniline!$B46),-'Lehm ja ratsiooni tingimused'!$D$33,0)","v":0},{"$f":"1-'Lehm ja ratsiooni tingimused'!$D$33","v":1},{"$f":"IF(AND(Tehniline!$B$47,Tehniline!$B46),-'Lehm ja ratsiooni tingimused'!$D$33,0)","v":0},{"$f":"IF(AND(Tehniline!$B$48,Tehniline!$B46),-'Lehm ja ratsiooni tingimused'!$D$33,0)","v":0},{"$f":"IF(AND(Tehniline!$B$49,Tehniline!$B46),-'Lehm ja ratsiooni tingimused'!$D$33,0)","v":0},{"$f":"IF(AND(Tehniline!$B$50,Tehniline!$B46),-'Lehm ja ratsiooni tingimused'!$D$33,0)","v":0},{"$f":"IF(AND(Tehniline!$B$51,Tehniline!$B46),-'Lehm ja ratsiooni tingimused'!$D$33,0)","v":0},{"$f":"IF(AND(Tehniline!$B$52,Tehniline!$B46),-'Lehm ja ratsiooni tingimused'!$D$33,0)","v":0},{"$f":"IF(AND(Tehniline!$B$53,Tehniline!$B46),-'Lehm ja ratsiooni tingimused'!$D$33,0)","v":0},{"$f":"IF(AND(Tehniline!$B$54,Tehniline!$B46),-'Lehm ja ratsiooni tingimused'!$D$33,0)","v":0},{"$f":"IF(AND(Tehniline!$B$55,Tehniline!$B46),-'Lehm ja ratsiooni tingimused'!$D$33,0)","v":0},{"$f":"IF(AND(Tehniline!$B$56,Tehniline!$B46),-'Lehm ja ratsiooni tingimused'!$D$33,0)","v":0}]
[null,"Teraviljad",null,null,null,null,null,null,null,0,null,0,null,null,null,null,null,null,null,null,null,null,1,-0.5,{"$f":"0-'Lehm ja ratsiooni tingimused'!$D$32","v":-0.5},null,null,null,null,null,null,null,null,null,null,null,null,null,null,null,null,null,null,null,null,null,null,{"$f":"IF(AND(Tehniline!$B$32,Tehniline!$B47),-'Lehm ja ratsiooni tingimused'!$D$33,0)","v":0},{"$f":"IF(AND(Tehniline!$B$33,Tehniline!$B47),-'Lehm ja ratsiooni tingimused'!$D$33,0)","v":0},{"$f":"IF(AND(Tehniline!$B$34,Tehniline!$B47),-'Lehm ja ratsiooni tingimused'!$D$33,0)","v":0},{"$f":"IF(AND(Tehniline!$B$35,Tehniline!$B47),-'Lehm ja ratsiooni tingimused'!$D$33,0)","v":0},{"$f":"IF(AND(Tehniline!$B$36,Tehniline!$B47),-'Lehm ja ratsiooni tingimused'!$D$33,0)","v":0},{"$f":"IF(AND(Tehniline!$B$37,Tehniline!$B47),-'Lehm ja ratsiooni tingimused'!$D$33,0)","v":0},{"$f":"IF(AND(Tehniline!$B$38,Tehniline!$B47),-'Lehm ja ratsiooni tingimused'!$D$33,0)","v":0},{"$f":"IF(AND(Tehniline!$B$39,Tehniline!$B47),-'Lehm ja ratsiooni tingimused'!$D$33,0)","v":0},{"$f":"IF(AND(Tehniline!$B$40,Tehniline!$B47),-'Lehm ja ratsiooni tingimused'!$D$33,0)","v":0},{"$f":"IF(AND(Tehniline!$B$41,Tehniline!$B47),-'Lehm ja ratsiooni tingimused'!$D$33,0)","v":0},{"$f":"IF(AND(Tehniline!$B$42,Tehniline!$B47),-'Lehm ja ratsiooni tingimused'!$D$33,0)","v":0},{"$f":"IF(AND(Tehniline!$B$43,Tehniline!$B47),-'Lehm ja ratsiooni tingimused'!$D$33,0)","v":0},{"$f":"IF(AND(Tehniline!$B$44,Tehniline!$B47),-'Lehm ja ratsiooni tingimused'!$D$33,0)","v":0},{"$f":"IF(AND(Tehniline!$B$45,Tehniline!$B47),-'Lehm ja ratsiooni tingimused'!$D$33,0)","v":0},{"$f":"IF(AND(Tehniline!$B$46,Tehniline!$B47),-'Lehm ja ratsiooni tingimused'!$D$33,0)","v":0},{"$f":"1-'Lehm ja ratsiooni tingimused'!$D$33","v":1},{"$f":"IF(AND(Tehniline!$B$48,Tehniline!$B47),-'Lehm ja ratsiooni tingimused'!$D$33,0)","v":0},{"$f":"IF(AND(Tehniline!$B$49,Tehniline!$B47),-'Lehm ja ratsiooni tingimused'!$D$33,0)","v":0},{"$f":"IF(AND(Tehniline!$B$50,Tehniline!$B47),-'Lehm ja ratsiooni tingimused'!$D$33,0)","v":0},{"$f":"IF(AND(Tehniline!$B$51,Tehniline!$B47),-'Lehm ja ratsiooni tingimused'!$D$33,0)","v":0},{"$f":"IF(AND(Tehniline!$B$52,Tehniline!$B47),-'Lehm ja ratsiooni tingimused'!$D$33,0)","v":0},{"$f":"IF(AND(Tehniline!$B$53,Tehniline!$B47),-'Lehm ja ratsiooni tingimused'!$D$33,0)","v":0},{"$f":"IF(AND(Tehniline!$B$54,Tehniline!$B47),-'Lehm ja ratsiooni tingimused'!$D$33,0)","v":0},{"$f":"IF(AND(Tehniline!$B$55,Tehniline!$B47),-'Lehm ja ratsiooni tingimused'!$D$33,0)","v":0},{"$f":"IF(AND(Tehniline!$B$56,Tehniline!$B47),-'Lehm ja ratsiooni tingimused'!$D$33,0)","v":0}]
[null,"Nisu","Nisukliid 265-24",0.15,0.86,11.2,97,92,18,{"$f":"I60","v":18},1.4,{"$f":"K60","v":1.4},11,167,null,600,null,null,null,null,null,null,1,-0.5,{"$f":"0-'Lehm ja ratsiooni tingimused'!$D$32","v":-0.5},null,null,null,null,null,null,null,null,null,null,null,null,null,null,null,null,null,null,null,null,null,null,{"$f":"IF(AND(Tehniline!$B$32,Tehniline!$B49),-'Lehm ja ratsiooni tingimused'!$D$33,0)","v":0},{"$f":"IF(AND(Tehniline!$B$33,Tehniline!$B49),-'Lehm ja ratsiooni tingimused'!$D$33,0)","v":0},{"$f":"IF(AND(Tehniline!$B$34,Tehniline!$B49),-'Lehm ja ratsiooni tingimused'!$D$33,0)","v":0},{"$f":"IF(AND(Tehniline!$B$35,Tehniline!$B49),-'Lehm ja ratsiooni tingimused'!$D$33,0)","v":0},{"$f":"IF(AND(Tehniline!$B$36,Tehniline!$B49),-'Lehm ja ratsiooni tingimused'!$D$33,0)","v":0},{"$f":"IF(AND(Tehniline!$B$37,Tehniline!$B49),-'Lehm ja ratsiooni tingimused'!$D$33,0)","v":0},{"$f":"IF(AND(Tehniline!$B$38,Tehniline!$B49),-'Lehm ja ratsiooni tingimused'!$D$33,0)","v":0},{"$f":"IF(AND(Tehniline!$B$39,Tehniline!$B49),-'Lehm ja ratsiooni tingimused'!$D$33,0)","v":0},{"$f":"IF(AND(Tehniline!$B$40,Tehniline!$B49),-'Lehm ja ratsiooni tingimused'!$D$33,0)","v":0},{"$f":"IF(AND(Tehniline!$B$41,Tehniline!$B49),-'Lehm ja ratsiooni tingimused'!$D$33,0)","v":0},{"$f":"IF(AND(Tehniline!$B$42,Tehniline!$B49),-'Lehm ja ratsiooni tingimused'!$D$33,0)","v":0},{"$f":"IF(AND(Tehniline!$B$43,Tehniline!$B49),-'Lehm ja ratsiooni tingimused'!$D$33,0)","v":0},{"$f":"IF(AND(Tehniline!$B$44,Tehniline!$B49),-'Lehm ja ratsiooni tingimused'!$D$33,0)","v":0},{"$f":"IF(AND(Tehniline!$B$45,Tehniline!$B49),-'Lehm ja ratsiooni tingimused'!$D$33,0)","v":0},{"$f":"IF(AND(Tehniline!$B$46,Tehniline!$B49),-'Lehm ja ratsiooni tingimused'!$D$33,0)","v":0},{"$f":"IF(AND(Tehniline!$B$47,Tehniline!$B49),-'Lehm ja ratsiooni tingimused'!$D$33,0)","v":0},{"$f":"IF(AND(Tehniline!$B$48,Tehniline!$B49),-'Lehm ja ratsiooni tingimused'!$D$33,0)","v":0},{"$f":"1-'Lehm ja ratsiooni tingimused'!$D$33","v":1},{"$f":"IF(AND(Tehniline!$B$50,Tehniline!$B49),-'Lehm ja ratsiooni tingimused'!$D$33,0)","v":0},{"$f":"IF(AND(Tehniline!$B$51,Tehniline!$B49),-'Lehm ja ratsiooni tingimused'!$D$33,0)","v":0},{"$f":"IF(AND(Tehniline!$B$52,Tehniline!$B49),-'Lehm ja ratsiooni tingimused'!$D$33,0)","v":0},{"$f":"IF(AND(Tehniline!$B$53,Tehniline!$B49),-'Lehm ja ratsiooni tingimused'!$D$33,0)","v":0},{"$f":"IF(AND(Tehniline!$B$54,Tehniline!$B49),-'Lehm ja ratsiooni tingimused'!$D$33,0)","v":0},{"$f":"IF(AND(Tehniline!$B$55,Tehniline!$B49),-'Lehm ja ratsiooni tingimused'!$D$33,0)","v":0},{"$f":"IF(AND(Tehniline!$B$56,Tehniline!$B49),-'Lehm ja ratsiooni tingimused'!$D$33,0)","v":0}]
[null,"Nisu","Nisu 265-20/21",0.17699999999999999,0.86,13.8,25,106,-28,-28,0.6,0.6,3.8,146,null,650,null,null,null,null,null,null,1,-0.5,{"$f":"1-'Lehm ja ratsiooni tingimused'!D32","v":0.5},null,null,null,null,null,null,null,null,null,null,null,null,null,null,null,null,null,null,null,null,null,null,{"$f":"IF(AND(Tehniline!$B$32,Tehniline!$B50),-'Lehm ja ratsiooni tingimused'!$D$33,0)","v":0},{"$f":"IF(AND(Tehniline!$B$33,Tehniline!$B50),-'Lehm ja ratsiooni tingimused'!$D$33,0)","v":0},{"$f":"IF(AND(Tehniline!$B$34,Tehniline!$B50),-'Lehm ja ratsiooni tingimused'!$D$33,0)","v":0},{"$f":"IF(AND(Tehniline!$B$35,Tehniline!$B50),-'Lehm ja ratsiooni tingimused'!$D$33,0)","v":0},{"$f":"IF(AND(Tehniline!$B$36,Tehniline!$B50),-'Lehm ja ratsiooni tingimused'!$D$33,0)","v":0},{"$f":"IF(AND(Tehniline!$B$37,Tehniline!$B50),-'Lehm ja ratsiooni tingimused'!$D$33,0)","v":0},{"$f":"IF(AND(Tehniline!$B$38,Tehniline!$B50),-'Lehm ja ratsiooni tingimused'!$D$33,0)","v":0},{"$f":"IF(AND(Tehniline!$B$39,Tehniline!$B50),-'Lehm ja ratsiooni tingimused'!$D$33,0)","v":0},{"$f":"IF(AND(Tehniline!$B$40,Tehniline!$B50),-'Lehm ja ratsiooni tingimused'!$D$33,0)","v":0},{"$f":"IF(AND(Tehniline!$B$41,Tehniline!$B50),-'Lehm ja ratsiooni tingimused'!$D$33,0)","v":0},{"$f":"IF(AND(Tehniline!$B$42,Tehniline!$B50),-'Lehm ja ratsiooni tingimused'!$D$33,0)","v":0},{"$f":"IF(AND(Tehniline!$B$43,Tehniline!$B50),-'Lehm ja ratsiooni tingimused'!$D$33,0)","v":0},{"$f":"IF(AND(Tehniline!$B$44,Tehniline!$B50),-'Lehm ja ratsiooni tingimused'!$D$33,0)","v":0},{"$f":"IF(AND(Tehniline!$B$45,Tehniline!$B50),-'Lehm ja ratsiooni tingimused'!$D$33,0)","v":0},{"$f":"IF(AND(Tehniline!$B$46,Tehniline!$B50),-'Lehm ja ratsiooni tingimused'!$D$33,0)","v":0},{"$f":"IF(AND(Tehniline!$B$47,Tehniline!$B50),-'Lehm ja ratsiooni tingimused'!$D$33,0)","v":0},{"$f":"IF(AND(Tehniline!$B$48,Tehniline!$B50),-'Lehm ja ratsiooni tingimused'!$D$33,0)","v":0},{"$f":"IF(AND(Tehniline!$B$49,Tehniline!$B50),-'Lehm ja ratsiooni tingimused'!$D$33,0)","v":0},{"$f":"1-'Lehm ja ratsiooni tingimused'!$D$33","v":1},{"$f":"IF(AND(Tehniline!$B$51,Tehniline!$B50),-'Lehm ja ratsiooni tingimused'!$D$33,0)","v":0},{"$f":"IF(AND(Tehniline!$B$52,Tehniline!$B50),-'Lehm ja ratsiooni tingimused'!$D$33,0)","v":0},{"$f":"IF(AND(Tehniline!$B$53,Tehniline!$B50),-'Lehm ja ratsiooni tingimused'!$D$33,0)","v":0},{"$f":"IF(AND(Tehniline!$B$54,Tehniline!$B50),-'Lehm ja ratsiooni tingimused'!$D$33,0)","v":0},{"$f":"IF(AND(Tehniline!$B$55,Tehniline!$B50),-'Lehm ja ratsiooni tingimused'!$D$33,0)","v":0},{"$f":"IF(AND(Tehniline!$B$56,Tehniline!$B50),-'Lehm ja ratsiooni tingimused'!$D$33,0)","v":0}]
[null,"Nisu",null,null,null,null,null,null,null,0,null,0,null,null,null,null,null,null,null,null,null,null,null,null,null,null,null,null,null,null,null,null,null,null,null,null,null,null,null,null,null,null,null,null,null,null,null,{"$f":"IF(AND(Tehniline!$B$32,Tehniline!$B51),-'Lehm ja ratsiooni tingimused'!$D$33,0)","v":0},{"$f":"IF(AND(Tehniline!$B$33,Tehniline!$B51),-'Lehm ja ratsiooni tingimused'!$D$33,0)","v":0},{"$f":"IF(AND(Tehniline!$B$34,Tehniline!$B51),-'Lehm ja ratsiooni tingimused'!$D$33,0)","v":0},{"$f":"IF(AND(Tehniline!$B$35,Tehniline!$B51),-'Lehm ja ratsiooni tingimused'!$D$33,0)","v":0},{"$f":"IF(AND(Tehniline!$B$36,Tehniline!$B51),-'Lehm ja ratsiooni tingimused'!$D$33,0)","v":0},{"$f":"IF(AND(Tehniline!$B$37,Tehniline!$B51),-'Lehm ja ratsiooni tingimused'!$D$33,0)","v":0},{"$f":"IF(AND(Tehniline!$B$38,Tehniline!$B51),-'Lehm ja ratsiooni tingimused'!$D$33,0)","v":0},{"$f":"IF(AND(Tehniline!$B$39,Tehniline!$B51),-'Lehm ja ratsiooni tingimused'!$D$33,0)","v":0},{"$f":"IF(AND(Tehniline!$B$40,Tehniline!$B51),-'Lehm ja ratsiooni tingimused'!$D$33,0)","v":0},{"$f":"IF(AND(Tehniline!$B$41,Tehniline!$B51),-'Lehm ja ratsiooni tingimused'!$D$33,0)","v":0},{"$f":"IF(AND(Tehniline!$B$42,Tehniline!$B51),-'Lehm ja ratsiooni tingimused'!$D$33,0)","v":0},{"$f":"IF(AND(Tehniline!$B$43,Tehniline!$B51),-'Lehm ja ratsiooni tingimused'!$D$33,0)","v":0},{"$f":"IF(AND(Tehniline!$B$44,Tehniline!$B51),-'Lehm ja ratsiooni tingimused'!$D$33,0)","v":0},{"$f":"IF(AND(Tehniline!$B$45,Tehniline!$B51),-'Lehm ja ratsiooni tingimused'!$D$33,0)","v":0},{"$f":"IF(AND(Tehniline!$B$46,Tehniline!$B51),-'Lehm ja ratsiooni tingimused'!$D$33,0)","v":0},{"$f":"IF(AND(Tehniline!$B$47,Tehniline!$B51),-'Lehm ja ratsiooni tingimused'!$D$33,0)","v":0},{"$f":"IF(AND(Tehniline!$B$48,Tehniline!$B51),-'Lehm ja ratsiooni tingimused'!$D$33,0)","v":0},{"$f":"IF(AND(Tehniline!$B$49,Tehniline!$B51),-'Lehm ja ratsiooni tingimused'!$D$33,0)","v":0},{"$f":"IF(AND(Tehniline!$B$50,Tehniline!$B51),-'Lehm ja ratsiooni tingimused'!$D$33,0)","v":0},{"$f":"1-'Lehm ja ratsiooni tingimused'!$D$33","v":1},{"$f":"IF(AND(Tehniline!$B$52,Tehniline!$B51),-'Lehm ja ratsiooni tingimused'!$D$33,0)","v":0},{"$f":"IF(AND(Tehniline!$B$53,Tehniline!$B51),-'Lehm ja ratsiooni tingimused'!$D$33,0)","v":0},{"$f":"IF(AND(Tehniline!$B$54,Tehniline!$B51),-'Lehm ja ratsiooni tingimused'!$D$33,0)","v":0},{"$f":"IF(AND(Tehniline!$B$55,Tehniline!$B51),-'Lehm ja ratsiooni tingimused'!$D$33,0)","v":0},{"$f":"IF(AND(Tehniline!$B$56,Tehniline!$B51),-'Lehm ja ratsiooni tingimused'!$D$33,0)","v":0}]
[null,"Nisu",null,null,null,null,null,null,null,0,null,0,null,null,null,null,null,null,null,null,null,null,null,null,null,null,null,null,null,null,null,null,null,null,null,null,null,null,null,null,null,null,null,null,null,null,null,{"$f":"IF(AND(Tehniline!$B$32,Tehniline!$B52),-'Lehm ja ratsiooni tingimused'!$D$33,0)","v":0},{"$f":"IF(AND(Tehniline!$B$33,Tehniline!$B52),-'Lehm ja ratsiooni tingimused'!$D$33,0)","v":0},{"$f":"IF(AND(Tehniline!$B$34,Tehniline!$B52),-'Lehm ja ratsiooni tingimused'!$D$33,0)","v":0},{"$f":"IF(AND(Tehniline!$B$35,Tehniline!$B52),-'Lehm ja ratsiooni tingimused'!$D$33,0)","v":0},{"$f":"IF(AND(Tehniline!$B$36,Tehniline!$B52),-'Lehm ja ratsiooni tingimused'!$D$33,0)","v":0},{"$f":"IF(AND(Tehniline!$B$37,Tehniline!$B52),-'Lehm ja ratsiooni tingimused'!$D$33,0)","v":0},{"$f":"IF(AND(Tehniline!$B$38,Tehniline!$B52),-'Lehm ja ratsiooni tingimused'!$D$33,0)","v":0},{"$f":"IF(AND(Tehniline!$B$39,Tehniline!$B52),-'Lehm ja ratsiooni tingimused'!$D$33,0)","v":0},{"$f":"IF(AND(Tehniline!$B$40,Tehniline!$B52),-'Lehm ja ratsiooni tingimused'!$D$33,0)","v":0},{"$f":"IF(AND(Tehniline!$B$41,Tehniline!$B52),-'Lehm ja ratsiooni tingimused'!$D$33,0)","v":0},{"$f":"IF(AND(Tehniline!$B$42,Tehniline!$B52),-'Lehm ja ratsiooni tingimused'!$D$33,0)","v":0},{"$f":"IF(AND(Tehniline!$B$43,Tehniline!$B52),-'Lehm ja ratsiooni tingimused'!$D$33,0)","v":0},{"$f":"IF(AND(Tehniline!$B$44,Tehniline!$B52),-'Lehm ja ratsiooni tingimused'!$D$33,0)","v":0},{"$f":"IF(AND(Tehniline!$B$45,Tehniline!$B52),-'Lehm ja ratsiooni tingimused'!$D$33,0)","v":0},{"$f":"IF(AND(Tehniline!$B$46,Tehniline!$B52),-'Lehm ja ratsiooni tingimused'!$D$33,0)","v":0},{"$f":"IF(AND(Tehniline!$B$47,Tehniline!$B52),-'Lehm ja ratsiooni tingimused'!$D$33,0)","v":0},{"$f":"IF(AND(Tehniline!$B$48,Tehniline!$B52),-'Lehm ja ratsiooni tingimused'!$D$33,0)","v":0},{"$f":"IF(AND(Tehniline!$B$49,Tehniline!$B52),-'Lehm ja ratsiooni tingimused'!$D$33,0)","v":0},{"$f":"IF(AND(Tehniline!$B$50,Tehniline!$B52),-'Lehm ja ratsiooni tingimused'!$D$33,0)","v":0},{"$f":"IF(AND(Tehniline!$B$51,Tehniline!$B52),-'Lehm ja ratsiooni tingimused'!$D$33,0)","v":0},{"$f":"1-'Lehm ja ratsiooni tingimused'!$D$33","v":1},{"$f":"IF(AND(Tehniline!$B$53,Tehniline!$B52),-'Lehm ja ratsiooni tingimused'!$D$33,0)","v":0},{"$f":"IF(AND(Tehniline!$B$54,Tehniline!$B52),-'Lehm ja ratsiooni tingimused'!$D$33,0)","v":0},{"$f":"IF(AND(Tehniline!$B$55,Tehniline!$B52),-'Lehm ja ratsiooni tingimused'!$D$33,0)","v":0},{"$f":"IF(AND(Tehniline!$B$56,Tehniline!$B52),-'Lehm ja ratsiooni tingimused'!$D$33,0)","v":0}]
[null,"Mineraalid","Mineraal1",0.05,0.99,null,null,null,null,0,140,140,40,null,null,null,null,null,null,null,null,null,null,null,null,null,null,1]
[null,"Mineraalid","Mineraal2",0.05,0.99,null,null,null,null,0,150,150,75,null,null,null,null,null,null,null,null,null,null,null,null,null,null,1]
[null,"Mineraalid","Lubjakivi",0.01,0.99,null,null,null,null,0,360,360,null,null,null,null,null,null,null,null,null,null,null,null,null,null,null,null,1]
[null,"Mineraalid","Panto",0.95,0.99,null,null,null,null,0,185,185,40,null,null,null,null,null,null,null,null,null,null,null,null,null,1]
[null,"Mineraalid","Mineraal 3",0.72,0.99,null,null,null,null,0,175,175,75]
[null,"Mineraalid","Sooda",0.34300000000000003,0.99,null,null,null,null,0,null,0]
[null,"Mineraalid","Karbamiid",0.29499999999999998,0.99,null,null,null,2625,2625,null,0,null,2625]
[null,"Mineraalid","Mineraal 4",1.3149999999999999,0.99,null,null,null,null,0,175,175,20]
[null,"Mineraalid",null,null,null,null,null,null,null,0,null,0]
[null,"Rasv","Kaitstud rasv",1.1299999999999999,0.99,32,null,null,null,0,null,0,null,null,null,null,null,null,null,null,null,null,null,null,null,null,null,null,null,null,1]
[null,"Lisasööt1",null,null,null,null,null,null,null,null,null,null,null,null,null,null,null,null,null,null,null,null,null,null,null,null,null,null,null,null,null,1]
[null,"Lisasööt1",null,null,null,null,null,null,null,0,null,0,null,null,null,null,null,null,null,null,null,null,null,null,null,null,null,null,null,null,null,1]
[null,"Lisasööt1",null,null,null,null,null,null,null,0,null,0,null,null,null,null,null,null,null,null,null,null,null,null,null,null,null,null,null,null,null,1]
[null,"Lisasööt1",null,null,null,null,null,null,null,0,null,0,null,null,null,null,null,null,null,null,null,null,null,null,null,null,null,null,null,null,null,1]
[null,"Lisasööt1",null,null,null,null,null,null,null,0,null,0,null,null,null,null,null,null,null,null,null,null,null,null,null,null,null,null,null,null,null,1]
[null,"Lisasööt2","sööda nimi 2",null,null,null,null,null,null,0,null,0,null,null,null,null,null,null,null,null,null,null,null,null,null,null,null,null,null,null,null,null,1]
[null,"Lisasööt2",null,null,null,null,null,null,null,0,null,0,null,null,null,null,null,null,null,null,null,null,null,null,null,null,null,null,null,null,null,null,1]
[null,"Lisasööt2",null,null,null,null,null,null,null,0,null,0,null,null,null,null,null,null,null,null,null,null,null,null,null,null,null,null,null,null,null,null,1]
[null,"Lisasööt2",null,null,null,null,null,null,null,0,null,0,null,null,null,null,null,null,null,null,null,null,null,null,null,null,null,null,null,null,null,null,1]
[null,"Lisasööt2",null,null,null,null,null,null,null,0,null,0,null,null,null,null,null,null,null,null,null,null,null,null,null,null,null,null,null,null,null,null,1]
[null,"Vesi","Töötlemata joogivesi",1E-3,0.01,null,null,null,null,0,null,0,null,null,null,null,null,null,null,null,null,null,null,null,null,null,null,null,null,null,null,null,null,null,null,null,null,null,null,null,null,null,null,null,null,null,1]

{"sheet":"Kontsentratsioonimäärad","index":2,"n_rows":41,"n_cols":24,"rows_kept":41,"cut":false,"hidden":false,"merged":[[31,23,39,23],[21,23,29,23],[11,23,19,23],[0,23,9,23]]}
["Piimatoodang, kg/päev",20,22,24,26,28,30,32,34,36,38,40,42,44,46,48,50,52,54,56,58,60,null,"0…30 päeva"]
["ME, MJ min",9.730244490449742,9.7953231897199,9.8640585730147734,9.9364506403343551,10.01249939167865,10.092204827047659,10.17556694644138,10.262585749859813,10.353261237302956,10.447593408770812,10.545582264263382,10.647227803780664,10.752530027322658,10.861488934889364,10.974104526480781,11.090376802096912,11.210305761737756,11.33389140540331,11.461133733093577,11.592032744808558,11.726588440548248]
["TK, g/kg KA min",172.5,171.5,170.5,169.5,168.5,167.5,166.5,165.5,164.4,163.20000000000002,162.00000000000003,160.80000000000004,159.60000000000005,158.40000000000006,157.20000000000007,156.00000000000009,154.8000000000001,153.60000000000011,152.40000000000012,151.20000000000013,150]
["MP, g",83.652323580034405,84.871836734693872,85.913043478260875,86.800888230940046,87.555869872701564,88.194989844278936,88.781818181818181,89.275109170305683,89.822328931572628,90.505494505494511,91.140624999999986,92.080086580086572,92.964285714285708,94.134152585765491,94.914883026381275,100.77755102040815,100.67192118226602,100.90969899665552,100.80628756356911,100.70935960591132,100.82578397212544]
["VPB, min, g",0,0,0,0,0,0,0,0,0,0,0,0,0,0,0,0,0,0,0,0,0]
["VPB,max, g",10,10,10,10,10,10,10,10,10,10,10,10,10,10,10,10,10,10,10,10,10]
["Ca, g min",6.9017478364160842,6.9691750503018097,7.0300061236987137,7.0851638327373552,7.1354064983963168,7.1813630598758413,7.2235595390524958,7.2624392644074049,7.2983785063321083,7.3316986941894271,7.3626760563380262,7.4195475885616711,7.4730737365368665,7.5505073451461451,7.5975855130784691,8.0515090543259547,8.0287518212724613,8.0342927127985284,8.0134919549660424,7.9939953198816704,7.9999999999999991]
["Ca, g max",8.2820974036993,8.3630100603621713,8.4360073484384568,8.5021965992848259,8.5624877980755798,8.6176356718510085,8.6682714468629953,8.7149271172888856,8.7580542075985299,8.7980384330273118,8.8352112676056311,8.9034571062740042,8.9676884838442401,9.0606088141753744,9.1171026156941632,9.6618108651911445,9.6345021855269533,9.641151255358233,9.6161903459592502,9.5927943838580045,9.5999999999999979]
["P, g",4.7745266781411351,4.7771428571428576,4.779503105590063,4.7816432272390816,4.7835926449787838,4.7853757616790791,4.7870129870129867,4.7885215221459765,4.7899159663865545,4.7912087912087911,4.7924107142857135,4.8116883116883109,4.829831932773109,4.8643113159242191,4.8800398208063713,5.1571428571428566,5.1290640394088669,5.1199235547061628,5.0947757743874247,5.0712046574115535,5.0644599303135891]
["Proteiin, g",126.88179222355834,130.63329602606635,134.28771534082156,137.84505016782401,141.3053005070737,144.66846635857064,147.93454772231479,151.10354459830617,154.17545698654482,157.15028488703069,160.0280282997638,162.80868722474412,165.4922616619717,168.07875161144648,170.56815707316855,172.96047804713785,175.25571453335434,177.45386653181808,179.55493404252906,181.55891706548726,183.46581560069274]
["Vaba - reserveering"]
["ME, MJ min",10.153298598730165,10.221206806664243,10.292930684884981,10.368470233392371,10.447825452186418,10.530996341267123,10.617982900634484,10.708785130288501,10.803403030229171,10.9018366004565,11.004085840970486,11.110150751771128,11.220031332858426,11.333727584232379,11.451239505892989,11.572567097840256,11.697710360074179,11.826669292594758,11.959443895401993,12.096034168495885,12.236440111876432,null,"Laktatsiooni I pool"]
["TK, g/kg KA min",142.05882352941177,141.23529411764704,140.41176470588235,139.58823529411765,138.76470588235293,137.94117647058823,137.11764705882354,136.29411764705881,135.38823529411764,134.4,133.41176470588238,132.42352941176472,131.43529411764709,130.44705882352946,129.45882352941183,128.47058823529417,127.48235294117654,126.4941176470589,125.50588235294127,124.51764705882363,123.52941176470587]
["MP, g",81.595834901498804,82.039969931709706,82.518216736268414,83.0305753151749,83.577045668429164,84.157627796031235,84.77232169798107,85.421127374278711,86.104044824924145,86.821074049917357,87.572215049258375,88.357467822947171,89.17683237098376,90.030308693368127,90.917896790100286,91.839596661180252,92.795408306607982,93.785331726383504,94.809366920506818,95.867513888977939,96.959772631796824]
["VPB, min, g",0,0,0,0,0,0,0,0,0,0,0,0,0,0,0,0,0,0,0,0,0]
["VPB,max, g",10,10,10,10,10,10,10,10,10,10,10,10,10,10,10,10,10,10,10,10,10]
["Ca, g min",6.9017478364160842,6.9691750503018097,7.0300061236987137,7.0851638327373552,7.1354064983963168,7.1813630598758413,7.2235595390524958,7.2624392644074049,7.2983785063321083,7.3316986941894271,7.3626760563380262,7.4195475885616711,7.4730737365368665,7.5505073451461451,7.5975855130784691,8.0515090543259547,8.0287518212724613,8.0342927127985284,8.0134919549660424,7.9939953198816704,7.9999999999999991]
["Ca, g max",8.2820974036993,8.3630100603621713,8.4360073484384568,8.5021965992848259,8.5624877980755798,8.6176356718510085,8.6682714468629953,8.7149271172888856,8.7580542075985299,8.7980384330273118,8.8352112676056311,8.9034571062740042,8.9676884838442401,9.0606088141753744,9.1171026156941632,9.6618108651911445,9.6345021855269533,9.641151255358233,9.6161903459592502,9.5927943838580045,9.5999999999999979]
["P, g",4.7745266781411351,4.7771428571428576,4.779503105590063,4.7816432272390816,4.7835926449787838,4.7853757616790791,4.7870129870129867,4.7885215221459765,4.7899159663865545,4.7912087912087911,4.7924107142857135,4.8116883116883109,4.829831932773109,4.8643113159242191,4.8800398208063713,5.1571428571428566,5.1290640394088669,5.1199235547061628,5.0947757743874247,5.0712046574115535,5.0644599303135891]
["Proteiin, g",130.50698628708858,134.36567591252538,138.12450720770218,141.78348017261899,145.34259480727582,148.80185111167265,152.16124908580949,155.42078872968636,158.58047004330325,161.64029302666015,164.60025767975705,167.46036400259396,170.22061199517088,172.88100165748781,175.44153298954478,177.90220599134179,180.26302066287874,182.52397700415574,184.68507501517274,186.74631469592975,188.7076960464268]
["Vaba - reserveering"]
["ME, MJ min",9.2034769515551016,9.4050855540073073,9.5926686952049849,9.7676407575641058,9.9312321324796144,10.084518196252803,10.228442977280707,10.363838615613567,10.491441462486602,10.64953634824119,10.762420311724917,10.86932350062186,11.005426388659247,11.100837135119042,11.191565024242891,11.310169261731426,11.391755687576531,11.50036198923047,11.604114263453663,11.673925460666352,11.769526363232105,null,"Laktatsiooni II pool"]
["TK, g/kg KA min",172.5,171.5,170.5,169.5,168.5,167.5,166.5,165.5,164.4,163.20000000000002,162.00000000000003,160.80000000000004,159.60000000000005,158.40000000000006,157.20000000000007,156.00000000000009,154.8000000000001,153.60000000000011,152.40000000000012,151.20000000000013,150]
["MP, g",91.958691910499127,92.751020408163271,93.406832298136649,93.945225758697262,94.381895332390386,94.729857819905206,95.049350649350643,95.296319401122901,95.615846338535405,96.087912087912088,96.526785714285708,97.344155844155836,98.073529411764696,99.1152073732719,99.757093081134883,105.74081632653061,105.464039408867,105.55757286192069,105.30374479889043,105.06583072100312,105.16202090592336]
["VPB, min, g",0,0,0,0,0,0,0,0,0,0,0,0,0,0,0,0,0,0,0,0,0]
["VPB,max, g",10,10,10,10,10,10,10,10,10,10,10,10,10,10,10,10,10,10,10,10,10]
["Ca, g min",5.176310877312063,5.2268812877263571,5.2725045927740357,5.3138728745530166,5.3515548737972374,5.3860222949068808,5.4176696542893721,5.4468294483055537,5.4737838797490816,5.4987740206420703,5.5220070422535201,5.5646606914212535,5.6048053024026494,5.662880508859609,5.6981891348088514,6.038631790744466,6.021563865954346,6.0257195345988963,6.0101189662245318,5.9954964899112531,5.9999999999999991]
["Ca, g max",6.211573052774475,6.2722575452716285,6.3270055113288421,6.3766474494636194,6.4218658485566849,6.4632267538882564,6.5012035851472465,6.5361953379666637,6.5685406556988974,6.5985288247704839,6.6264084507042238,6.6775928297055032,6.7257663628831796,6.7954566106315308,6.837826961770622,7.2463581488933588,7.2258766391452145,7.2308634415186752,7.2121427594694376,7.194595787893503,7.1999999999999984]
["P, g",3.8196213425129084,3.8217142857142861,3.8236024844720506,3.8253145817912655,3.8268741159830273,3.8283006093432634,3.8296103896103895,3.8308172177167812,3.8319327731092439,3.8329670329670331,3.8339285714285709,3.8493506493506491,3.8638655462184874,3.8914490527393752,3.9040318566450973,4.1257142857142854,4.1032512315270937,4.0959388437649302,4.0758206195099396,4.0569637259292426,4.0515679442508716]
["Proteiin, g",116.00621003296762,119.43615636668922,122.77733974017971,126.0297601534391,129.19341760646739,132.26831209926456,135.25444363183064,138.15181220416565,140.96041781626954,143.68026046814234,146.31134015978404,148.85365689119462,151.3072106623741,153.6720014733225,155.94802932403979,158.13529421452603,160.23379614478111,162.2435351148051,164.16451112459799,165.99672417415977,167.74017426349047]
["Vaba - reserveering",null,null,null,null,null,null,null,null,null,null,null,null,null,null,null,null,null,null,null,"   "]
["ME, MJ min",9,9,9,9,9,9,9,9,9,9,9,9,9,9,9,9,9,9,9,9,9,null,"Kinnislehmad"]
["TK, g/kg KA min",220,220,220,220,220,220,220,220,220,220,220,220,220,220,220,220,220,220,220,220,220]
["MP, g",70,70,70,70,70,70,70,70,70,70,70,70,70,70,70,70,70,70,70,70,70]
["VPB, min, g",-10,-10,-10,-10,-10,-10,-10,-10,-10,-10,-10,-10,-10,-10,-10,-10,-10,-10,-10,-10,-10]
["VPB,max, g",10,10,10,10,10,10,10,10,10,10,10,10,10,10,10,10,10,10,10,10,10]
["Ca, g min",4.5,4.5,4.5,4.5,4.5,4.5,4.5,4.5,4.5,4.5,4.5,4.5,4.5,4.5,4.5,4.5,4.5,4.5,4.5,4.5,4.5]
["Ca, g max",5.5,5.5,5.5,5.5,5.5,5.5,5.5,5.5,5.5,5.5,5.5,5.5,5.5,5.5,5.5,5.5,5.5,5.5,5.5,5.5,5.5]
["P, g",3,3,3,3,3,3,3,3,3,3,3,3,3,3,3,3,3,3,3,3,3]
["Proteiin, g",125,125,125,125,125,125,125,125,125,125,125,125,125,125,125,125,125,125,125,125,125]
["Vaba - reserveering"]

{"sheet":"Optimaalne ratsioon","index":3,"n_rows":50,"n_cols":10,"rows_kept":50,"cut":false,"hidden":false,"merged":[]}
[]
[null,"Söödad","Kogus, kg","Hind, €/kg","Maksumus, €",null,null,"Kogus, kg",null,"Maksumus, €"]
[null,"Kõrreliste silo hea heintaimikuga kultuurrohumaalt LL 030-12-40",33.569107319366765,0.03,{"$f":"C3*D3","v":1.0070732195810028},null,null,33.569107319366765,null,{"$f":"H3*D3","v":1.0070732195810028}]
[null,"Põldheinasilo (50% ristikut) LL  103-12-40",13.736891012830601,0.03,{"$f":"C4*D4","v":0.41210673038491802},null,null,13.736891012830601,null,{"$f":"H4*D4","v":0.41210673038491802}]
[null,"Maisisilo PK 260-12-70",0,0.03,0,null,null,0,null,0]
[null,"VII auk - maisisilo",3.4408600436165954E-14,0.03,1.0322580130849785E-15,null,null,3.4408600436165954E-14,null,1.0322580130849785E-15]
[null,"Hein kõrreliste kultuurrohumaa  030-15-60",0,7.8E-2,0,null,null,0,null,0]
[null,"Põldhein (50% ristikut)  LL 103-15-40",0.99999999999999978,7.8E-2,7.7999999999999986E-2,null,null,0.99999999999999978,null,7.7999999999999986E-2]
[null,"Odrapõhk 255-16-0",0,1.4999999999999999E-2,0,null,null,0,null,0]
[null,"Rapsikook  350-28",4.6703598965308277,0.27,1.2609971720633235,null,null,4.6703598965308277,null,1.2609971720633235]
[null,"Sojašrott 310-29",0,0.46,0,null,null,0,null,0]
[null,"Oder  255-20/21",0,0.159,0,null,null,0,null,0]
[null,"Mais 260-20/21",2.978569391689903,0.2,0.59571387833798062,null,null,2.978569391689903,null,0.59571387833798062]
[null,"Nisu 265-20/21",7.9936057773011271E-15,0.17699999999999999,1.4148682225822995E-15,null,null,0,null,0]
[null,"Mineraal2",0.2,0.05,1.0000000000000002E-2,null,null,0.2,null,1.0000000000000002E-2]
[null,"Lubjakivi",0,0.01,0,null,null,0,null,0]
[null,"Panto",0,0.95,0,null,null,0,null,0]
[null,"Mineraal 3",0,0.72,0,null,null,0,null,0]
[null,"Karbamiid",0,0.29499999999999998,0,null,null,0,null,0]
[null,"Kaitstud rasv",0,1.1299999999999999,0,null,null,0,null,0]
[null,null,2,null,0,null,null,2,null,0]
[null,null,0,null,0,null,null,0,null,0]
[null,null,0,null,0,null,null,0,null,0]
[null,null,0,null,0,null,null,0,null,0]
[]
[null,"Kontrollnäitajad"]
[]
[null,"Ratsiooni maksumus, €/päev",{"$f":"Tabel1!Y5","v":3.3638910003672269},null,null,null,null,{"$f":"SUM(J3:J30)","v":3.3638910003672255}]
[null,"Ratsiooni kogus, kg/päev",{"$f":"SUM(C3:C25)","v":58.154927620418135},null,null,null,null,{"$f":"SUM(H3:H25)","v":58.154927620418128}]
[]
[null,"Kuivaine kogus, kg",{"$f":"Tabel1!Y6","v":24.349993000000151},null,null,null,null,{"$f":"SUM(Tehniline!AH3:AH24)","v":24.349993000000143}]
[null,"Kuivaine osatähtsus ratsiooni kogumassist, %",{"$f":"C31/C29","v":0.41870902426247525},null,null,null,null,{"$f":"H31/H29","v":0.41870902426247519}]
[null,"Jõusööda osakaal ratsiooni kuivainest, %",{"$f":"(SUMPRODUCT(--(Tabel1!B3:'Tabel1'!W3=\"Teraviljad\"),Tabel1!B2:W2,Tabel1!B6:W6)+SUMPRODUCT(--(Tabel1!B3:'Tabel1'!W3=\"Õlikoogid\"),Tabel1!B2:W2,Tabel1!B6:W6)+SUMPRODUCT(--(Tabel1!B3:'Tabel1'!W3=\"Nisu\"),Tabel1!B2:W2,Tabel1!B6:W6))/'Optimaalne ratsioon'!C31","v":0.27781911821210903},null,null,null,null,{"$f":"SUM(SUMIF(Tehniline!F3:F24,\"Õlikoogid\",Tehniline!AH3:AH24),SUMIF(Tehniline!F3:F24,\"Teraviljad\",Tehniline!AH3:AH24),SUMIF(Tehniline!F3:F24,\"Nisu\",Tehniline!AH3:AH24))/H31","v":0.27781911821210881}]
[null,"Silo osatähtsus kuivainest, % ",{"$f":"(SUMPRODUCT(--(Tabel1!B3:'Tabel1'!W3=\"Silo\"),Tabel1!B2:W2,Tabel1!B6:W6)+SUMPRODUCT(--(Tabel1!B3:'Tabel1'!W3=\"Maisisilo\"),Tabel1!B2:W2,Tabel1!B6:W6))/'Optimaalne ratsioon'!C31","v":0.67996321051381736},null,null,null,null,{"$f":"SUM(SUMIF(Tehniline!F3:F24,\"Silo\",Tehniline!AH3:AH24),SUMIF(Tehniline!F3:F24,\"Maisisilo\",Tehniline!AH3:AH24))/H31","v":0.67996321051381758}]
[null,"Maisisilo osatähtsus kogu silokoguse kuivainest, %",{"$f":"(SUMPRODUCT(--(Tabel1!B3:'Tabel1'!W3=\"Maisisilo\"),Tabel1!B2:W2,Tabel1!B6:W6))/(SUMPRODUCT(--(Tabel1!B3:'Tabel1'!W3=\"Silo\"),Tabel1!B2:W2,Tabel1!B6:W6)+SUMPRODUCT(--(Tabel1!B3:'Tabel1'!W3=\"Maisisilo\"),Tabel1!B2:W2,Tabel1!B6:W6))","v":4.7798094952198318E-16},null,null,null,null,{"$f":"SUMIF(Tehniline!F3:F24,\"Maisisilo\",Tehniline!AH3:AH24) / (SUMIF(Tehniline!F3:F24,\"Maisisilo\",Tehniline!AH3:AH24) + SUMIF(Tehniline!F3:F24,\"Silo\",Tehniline!AH3:AH24))","v":4.7798094952198318E-16}]
[null,"Nisu osatähtsus teravilja ja jahude kogusest, %",{"$f":"SUMPRODUCT(--(Tabel1!B3:'Tabel1'!W3=\"Nisu\"),Tabel1!B2:W2,Tabel1!B6:W6)/(SUMPRODUCT(--(Tabel1!B3:'Tabel1'!W3=\"Nisu\"),Tabel1!B2:W2,Tabel1!B6:W6)+SUMPRODUCT(--(Tabel1!B3:'Tabel1'!W3=\"Teraviljad\"),Tabel1!B2:W2,Tabel1!B6:W6))","v":2.6837064127506876E-15},null,null,null,null,{"$f":"SUMIF(Tehniline!F3:F24,\"Nisu\",Tehniline!AH3:AH24)/( SUMIF(Tehniline!F3:F24,\"Nisu\",Tehniline!AH3:AH24)+SUMIF(Tehniline!F3:F24,\"Teraviljad\",Tehniline!AH3:AH24))","v":0}]
[]
[null,"Metaboliseeruv energia, MJ",{"$f":"Tabel1!Y7","v":266.20216031144952},null,null,null,null,{"$f":"SUM(Tehniline!AL3:AL24)","v":266.2021603114494}]
[null,"Metaboliseeruv energia, MJ/kg KA",{"$f":"C38/C31","v":10.932330054938737},null,null,null,null,{"$f":"H38/H31","v":10.932330054938737}]
[null,"(Toor)proteiin, g KA",{"$f":"Tabel1!Y15/'Optimaalne ratsioon'!C31","v":161.64029302665952},null,null,null,null,{"$f":"SUM(Tehniline!AR3:AR24)/H31","v":161.64029302665955}]
[null,"Toorproteiini ja metaboliseeruva energia suhe",{"$f":"C40/C39","v":14.78552991122306},null,null,null,null,{"$f":"H40/H39","v":14.785529911223062}]
[null,"Metaboliseeruv proteiin, g/kg KA",{"$f":"Tabel1!Y9/'Optimaalne ratsioon'!C31","v":96.999039539428708},null,null,null,null,{"$f":"SUM(Tehniline!AM3:AM24)/H31","v":96.999039539428708}]
[null,"Metaboliseeruva proteiini ja metaboliseeruva energia suhe",{"$f":"C42/C39","v":8.8726775583956048},null,null,null,null,{"$f":"H42/H39","v":8.8726775583956048}]
[null,"VPB, g",{"$f":"Tabel1!Y10/'Optimaalne ratsioon'!C31","v":10.00000000000011},null,null,null,null,{"$f":"SUM(Tehniline!AN3:AN24)/'Optimaalne ratsioon'!H31","v":10.000000000000121}]
[null,"Ca:P suhe",{"$f":"Tabel1!Y13/Tabel1!Y14","v":1.640082219079066},null,null,null,null,{"$f":"SUM(Tehniline!AJ3:AJ24)/SUM(Tehniline!AK3:AK24)","v":1.6400822190790665}]
[]
[null,"Tärklis ja suhkur ratsiooni kuivaines, g/kg",{"$f":"Tabel1!Y17/'Optimaalne ratsioon'!C31","v":114.752009378841},null,null,null,null,{"$f":"SUM(Tehniline!AI3:AI24)/'Optimaalne ratsioon'!H31","v":114.75200937884084}]
[null,"Toorkiud, g/kg KA",{"$f":"Tabel1!Y8/'Optimaalne ratsioon'!C31","v":225.37592506618046},null,null,null,null,{"$f":"SUM(Tehniline!AO3:AO24)/'Optimaalne ratsioon'!H31","v":225.37592506618049}]
[null,"ADF, g/kg KA",{"$f":"Tabel1!Y18/'Optimaalne ratsioon'!C31","v":304.50995578089879},null,null,null,null,{"$f":"SUM(Tehniline!AP3:AP24)/'Optimaalne ratsioon'!H31","v":304.50995578089885}]
[null,"NDF, g/kg KA",{"$f":"Tabel1!Y19/'Optimaalne ratsioon'!C31","v":457.56658622614827},null,null,null,null,{"$f":"SUM(Tehniline!AQ3:AQ24)/'Optimaalne ratsioon'!H31","v":457.56658622614833}]

{"sheet":"Tabel1","index":4,"n_rows":73,"n_cols":30,"rows_kept":73,"cut":false,"hidden":false,"merged":[]}
[null,{"$f":"B6*B2","v":11.749187561778367},{"$f":"C6*C2","v":4.80791185449071},0,7.9139781003181693E-15,{"$f":"F6*F2","v":0},0.82999999999999974,0,4.2033239068777455,0,0,2.5615696768533165,6.8745009684789695E-15,0.19800000000000001,0,0,0,0,0,0,0,0,0,null,650,null,"NORM?"]
["valik",33.569107319366765,13.736891012830601,0,3.4408600436165954E-14,0,0.99999999999999978,0,4.6703598965308277,0,0,2.978569391689903,7.9936057773011271E-15,0.2,0,0,0,0,0,2,0,0,0]
[null,"Silo","Silo","Maisisilo","Maisisilo","Hein","Hein","Põhk","Õlikoogid","Õlikoogid","Teraviljad","Teraviljad","Nisu","Mineraalid","Mineraalid","Mineraalid","Mineraalid","Mineraalid","Rasv","Lisasööt1"]
["Söödad","Kõrreliste silo hea heintaimikuga kultuurrohumaalt LL 030-12-40","Põldheinasilo (50% ristikut) LL  103-12-40","Maisisilo PK 260-12-70","VII auk - maisisilo","Hein kõrreliste kultuurrohumaa  030-15-60","Põldhein (50% ristikut)  LL 103-15-40","Odrapõhk 255-16-0","Rapsikook  350-28","Sojašrott 310-29","Oder  255-20/21","Mais 260-20/21","Nisu 265-20/21","Mineraal2","Lubjakivi","Panto","Mineraal 3","Karbamiid","Kaitstud rasv"]
["Hind, €/kg",0.03,0.03,0.03,0.03,7.8E-2,7.8E-2,1.4999999999999999E-2,0.27,0.46,0.159,0.2,0.17699999999999999,0.05,0.01,0.95,0.72,0.29499999999999998,1.1299999999999999,null,null,null,null,null,{"$f":"SUMPRODUCT(B5:W5,$B$2:$W$2)","v":3.3638910003672269},null,0]
["KA,%",0.35,0.35,0.22,0.23,0.83,0.83,0.83,0.9,0.88,0.86,0.86,0.86,0.99,0.99,0.99,0.99,0.99,0.99,null,null,null,null,null,{"$f":"SUMPRODUCT(B6:W6,$B$2:$W$2)","v":24.349993000000151},"=",{"$f":"'Lehm ja ratsiooni tingimused'!D10","v":13.559803790000002}]
["ME, MJ/kg KA",3.5349999999999997,3.43,2.2880000000000003,2.5300000000000002,6.9719999999999995,7.7190000000000003,5.7270000000000003,12.06,12.407999999999999,11.18,12.212,11.868,0,0,0,0,0,31.68,null,null,null,null,null,{"$f":"SUMPRODUCT(B7:W7,$B$2:$W$2)","v":266.20216031144952},">=",{"$f":"$AA$6*AB7","v":147.8267652528308},10.9018366004565,null,{"$f":"Y7/$Y$6","v":10.932330054938737}]
["Toorkiud, g/kg KA",98,98,61.6,51.29,278.05,260.62,348.59999999999997,110.7,69.52,51.6,24.94,21.5,0,0,0,0,0,0,null,null,null,null,null,{"$f":"SUMPRODUCT(B8:W8,$B$2:$W$2)","v":5487.9021977300526},">=",{"$f":"$AA$6*AB8","v":1822.4376293760004},134.4,null,{"$f":"Y8/$Y$6","v":225.37592506618046}]
["MP, g/kg KA",27.65,27.65,16.72,18.170000000000002,57.269999999999996,67.22999999999999,46.48,144.9,172.48,88.58,104.06,91.16,0,0,0,0,0,0,null,null,null,null,null,2361.925933791827,">=",{"$f":"$AA$6*AB9","v":1177.2767289539402},86.821074049917357,null,96.999039539428708]
["VPB, g/kg KA",-2.0999999999999996,0,-7.48,-9.89,-32.369999999999997,-14.11,-39.839999999999996,125.10000000000001,176,-37.839999999999996,-86,-24.08,0,0,0,0,2598.75,0,null,null,null,null,null,243.49993000000418,">=",0,0,null,10.00000000000011]
["VPB, g, max",-2.0999999999999996,0,-7.48,-9.89,-32.369999999999997,-14.11,-39.839999999999996,125.10000000000001,176,-37.839999999999996,-86,-24.08,0,0,0,0,2598.75,0,null,null,null,null,null,243.49993000000418,"<=",135.59803790000001,10,null,10.00000000000011]
["Ca, g/kg KA",2.0999999999999996,3.4649999999999999,0.88,0.89700000000000002,4.399,7.6359999999999992,3.2369999999999997,7.4700000000000006,2.992,0.68800000000000006,0.34400000000000003,0.51600000000000001,148.5,356.4,183.15,173.25,0,0,null,null,null,null,null,191.34166902795482,">=",99.416395740607854,7.3316986941894271,null,7.8579763463567991]
["Ca,  g, max",2.0999999999999996,3.4649999999999999,0.88,0.89700000000000002,4.399,7.6359999999999992,3.2369999999999997,7.4700000000000006,2.992,0.68800000000000006,0.34400000000000003,0.51600000000000001,148.5,356.4,183.15,173.25,0,0,null,null,null,null,null,191.34166902795482,"<=",119.29967488872943,8.7980384330273118,null,7.8579763463567991]
["P, g/kg KA",1.0499999999999998,0.90999999999999992,0.50600000000000001,0.48300000000000004,1.9089999999999998,1.9919999999999998,0.83,9.4500000000000011,6.4239999999999995,3.5259999999999998,2.6659999999999999,3.2679999999999998,74.25,0,39.6,74.25,0,0,null,null,null,null,null,116.66590052747259,">=",64.96785112571429,4.7912087912087911,null,4.7912087912087644]
["(Toor) proteiin, g/kg KA",44.8,47.25,20.9,20.93,66.399999999999991,102.08999999999999,39.01,307.8,440,107.5,81.7,125.56,0,0,0,0,2598.75,0,null,null,null,null,null,3935.9400037171326,">=",2191.810657999617,161.64029302666015,null,161.64029302665952]
["Vaba - reserveering",0,0,0,0,0,0,0,0,0,0,0,0,0,0,0,0,0,0,null,null,null,null,null,0,">=",0]
["Tärklis+suhkur, g/kg KA",10.5,10.5,44,46,0,0,0,108,228.8,516,602,559,0,0,0,0,0,0,null,null,null,null,null,2794.2106251107298,">=",0]
["ADF, g/kg KA",129.5,123.89999999999999,78.320000000000007,81.88000000000001,351.09,318.71999999999997,414.16999999999996,208.8,82.72,67.94,24.08,0,0,0,0,0,0,0,null,null,null,null,null,7414.8152916952404,"<=",0]
["NDF, g/kg KA",196,175.7,126.5,132.25,553.61,472.27,654.04,299.7,149.6,190.06,92.88,0,0,0,0,0,0,0,null,null,null,null,null,11141.743171640675,"<=",0]
["silo",1,1,1,1,null,null,null,null,null,null,null,null,null,null,null,null,null,null,null,null,null,null,null,47.305998332197397,"<=",{"$f":"'Lehm ja ratsiooni tingimused'!D18","v":50},null,"D17"]
["silo max%",-1,-1,0,0,null,null,null,null,null,null,null,null,null,null,null,null,null,null,null,null,null,null,null,-47.305998332197362,"<=",0]
["hein",null,null,null,null,1,1,null,null,null,null,null,null,null,null,null,null,null,null,null,null,null,null,null,0.99999999999999978,"<=",{"$f":"'Lehm ja ratsiooni tingimused'!D24","v":1},null,"D18"]
["põhk",null,null,null,null,null,null,1,null,null,null,null,null,null,null,null,null,null,null,null,null,null,null,null,0,"<=",{"$f":"'Lehm ja ratsiooni tingimused'!D25","v":0.5},null,"D19"]
["jahud",null,null,null,null,null,null,null,1,1,1,1,1,null,null,null,null,null,null,null,null,null,null,null,7.6489292882207387,"<=",{"$f":"'Lehm ja ratsiooni tingimused'!D31","v":15},null,"D20"]
["jahud%",null,null,null,null,null,null,null,null,null,0.5,-0.5,-0.5,null,null,null,null,null,null,null,null,null,null,null,-1.4892846958449555,"<=",0]
["nisu max",null,null,null,null,null,null,null,null,null,-0.5,-0.5,0.5,null,null,null,null,null,null,null,null,null,null,null,-1.4892846958449475,"<=",0]
["õlikoogid",null,null,null,null,null,null,null,1,null,null,null,null,null,null,null,null,null,null,null,null,null,null,null,4.6703598965308277,"<=",{"$f":"'Lehm ja ratsiooni tingimused'!D28","v":5},null,"D21"]
["panto",null,null,null,null,null,null,null,null,null,null,null,null,null,null,1,null,null,null,null,null,null,null,null,0,"<=",0]
["mineraal",null,null,null,null,null,null,null,null,null,null,null,null,1,null,null,null,null,null,null,null,null,null,null,0.2,"<=",{"$f":"'Lehm ja ratsiooni tingimused'!D39","v":0.2},null,"D22"]
["lubjakivi",null,null,null,null,null,null,null,null,null,null,null,null,null,1,null,null,null,null,null,null,null,null,null,0,"<=",{"$f":"'Lehm ja ratsiooni tingimused'!D40","v":0.25},null,"D23"]
["maisisilo min",0,0,1,1,null,null,null,null,null,null,null,null,null,null,null,null,null,null,null,null,null,null,null,3.4408600436165954E-14,">=",0]
["Kaitstud rasv max",null,null,null,null,null,null,null,null,null,null,null,null,null,null,null,null,null,1,null,null,null,null,null,0,"<=",{"$f":"'Lehm ja ratsiooni tingimused'!D36","v":0.2},null,"D27"]
["Lisasööt1",null,null,null,null,null,null,null,null,null,null,null,null,null,null,null,null,null,null,1,null,null,null,null,2,">=",{"$f":"'Lehm ja ratsiooni tingimused'!D43","v":2},null,"D28"]
["Lisasööt2",null,null,null,null,null,null,null,null,null,null,null,null,null,null,null,null,null,null,null,null,null,null,null,0,">=",{"$f":"'Lehm ja ratsiooni tingimused'!D44","v":0},null,"D29"]
["rohusilo max %",1,0,null,null,null,null,null,null,null,null,null,null,null,null,null,null,null,null,null,null,null,null,null,{"$f":"SUMPRODUCT(B35:W35,$B$2:$W$2)","v":33.569107319366765},">=",0]
["rohusilo max %",0,0,null,null,null,null,null,null,null,null,null,null,null,null,null,null,null,null,null,null,null,null,null,{"$f":"SUMPRODUCT(B36:W36,$B$2:$W$2)","v":0},">=",0]
["rohusilo max %",0,1,null,null,null,null,null,null,null,null,null,null,null,null,null,null,null,null,null,null,null,null,null,13.736891012830601,">=",0]
["rohusilo max %",0,0,null,null,null,null,null,null,null,null,null,null,null,null,null,null,null,null,null,null,null,null,null,0,">=",0]
["rohusilo max %",0,0,null,null,null,null,null,null,null,null,null,null,null,null,null,null,null,null,null,null,null,null,null,0,">=",0]
["rohusilo max %",0,0,null,null,null,null,null,null,null,null,null,null,null,null,null,null,null,null,null,null,null,null,null,0,">=",0]
["rohusilo max %",0,0,null,null,null,null,null,null,null,null,null,null,null,null,null,null,null,null,null,null,null,null,null,0,">=",0]
["rohusilo max %",0,0,null,null,null,null,null,null,null,null,null,null,null,null,null,null,null,null,null,null,null,null,null,0,">=",0]
["rohusilo max %",0,0,null,null,null,null,null,null,null,null,null,null,null,null,null,null,null,null,null,null,null,null,null,0,">=",0]
["rohusilo max %",0,0,null,null,null,null,null,null,null,null,null,null,null,null,null,null,null,null,null,null,null,null,null,0,">=",0]
["rohusilo max %",0,0,null,null,null,null,null,null,null,null,null,null,null,null,null,null,null,null,null,null,null,null,null,0,">=",0]
["rohusilo max %",0,0,null,null,null,null,null,null,null,null,null,null,null,null,null,null,null,null,null,null,null,null,null,0,">=",0]
["rohusilo max %",0,0,null,null,null,null,null,null,null,null,null,null,null,null,null,null,null,null,null,null,null,null,null,0,">=",0]
["Vesi",null,null,null,null,null,null,null,null,null,null,null,null,null,null,null,null,null,null,null,null,null,null,null,0,null,0]
["teravilja max%",null,null,null,null,null,null,null,null,null,1,0,0,null,null,null,null,null,null,null,null,null,null,null,0,">=",0]
["teravilja max%",null,null,null,null,null,null,null,null,null,0,1,0,null,null,null,null,null,null,null,null,null,null,null,2.978569391689903,">=",0]
["teravilja max%",null,null,null,null,null,null,null,null,null,0,0,0,null,null,null,null,null,null,null,null,null,null,null,0,">=",0]
["teravilja max%",null,null,null,null,null,null,null,null,null,0,0,0,null,null,null,null,null,null,null,null,null,null,null,0,">=",0]
["teravilja max%",null,null,null,null,null,null,null,null,null,0,0,0,null,null,null,null,null,null,null,null,null,null,null,0,">=",0]
["teravilja max%",null,null,null,null,null,null,null,null,null,0,0,0,null,null,null,null,null,null,null,null,null,null,null,0,">=",0]
["teravilja max%",null,null,null,null,null,null,null,null,null,0,0,0,null,null,null,null,null,null,null,null,null,null,null,0,">=",0]
["teravilja max%",null,null,null,null,null,null,null,null,null,0,0,0,null,null,null,null,null,null,null,null,null,null,null,0,">=",0]
["teravilja max%",null,null,null,null,null,null,null,null,null,0,0,0,null,null,null,null,null,null,null,null,null,null,null,0,">=",0]
["teravilja max%",null,null,null,null,null,null,null,null,null,0,0,0,null,null,null,null,null,null,null,null,null,null,null,0,">=",0]
["teravilja max%",null,null,null,null,null,null,null,null,null,0,0,0,null,null,null,null,null,null,null,null,null,null,null,0,">=",0]
["teravilja max%",null,null,null,null,null,null,null,null,null,0,0,0,null,null,null,null,null,null,null,null,null,null,null,0,">=",0]
["teravilja max%",null,null,null,null,null,null,null,null,null,0,0,0,null,null,null,null,null,null,null,null,null,null,null,0,">=",0]
["teravilja max%",null,null,null,null,null,null,null,null,null,0,0,0,null,null,null,null,null,null,null,null,null,null,null,0,">=",0]
["teravilja max%",null,null,null,null,null,null,null,null,null,0,0,0,null,null,null,null,null,null,null,null,null,null,null,0,">=",0]
["teravilja max%",null,null,null,null,null,null,null,null,null,0,0,0,null,null,null,null,null,null,null,null,null,null,null,0,">=",0]
["teravilja max%",null,null,null,null,null,null,null,null,null,0,0,0,null,null,null,null,null,null,null,null,null,null,null,0,">=",0]
["nisu max%",null,null,null,null,null,null,null,null,null,0,0,0,null,null,null,null,null,null,null,null,null,null,null,0,">=",0]
["nisu max%",null,null,null,null,null,null,null,null,null,0,0,1,null,null,null,null,null,null,null,null,null,null,null,7.9936057773011271E-15,">=",0]
["nisu max%",null,null,null,null,null,null,null,null,null,0,0,0,null,null,null,null,null,null,null,null,null,null,null,0,">=",0]
["nisu max%",null,null,null,null,null,null,null,null,null,0,0,0,null,null,null,null,null,null,null,null,null,null,null,0,">=",0]
["nisu max%",null,null,null,null,null,null,null,null,null,0,0,0,null,null,null,null,null,null,null,null,null,null,null,0,">=",0]
["nisu max%",null,null,null,null,null,null,null,null,null,0,0,0,null,null,null,null,null,null,null,null,null,null,null,0,">=",0]
["nisu max%",null,null,null,null,null,null,null,null,null,0,0,0,null,null,null,null,null,null,null,null,null,null,null,0,">=",0]
["nisu max%",null,null,null,null,null,null,null,null,null,0,0,0,null,null,null,null,null,null,null,null,null,null,null,0,">=",0]

{"sheet":"Tehniline","index":5,"n_rows":58,"n_cols":44,"rows_kept":58,"cut":false,"hidden":true,"merged":[[27,0,30,0],[27,1,30,1]]}
[]
[null,null,null,null,null,null,"Söödad","Hind, €/kg","KA,%","ME, MJ/kg KA","Toorkiud, g/kg KA","MP, g/kg KA","VPB, g/kg KA","VPB, g, max","Ca, g/kg KA","Ca,  g, max","P, g/kg KA","(Toor) proteiin, g/kg KA","Vaba - reserveering","Tärklis+suhkur, g/kg KA","ADF, g/kg KA","NDF, g/kg KA","silo","silo max%","hein","põhk","jahud","jahud%","nisu max","õlikoogid","panto","mineraal",null,"KA","Tärklis+suhkur","Ca,Max","P","ME, MJ/kg KA","MP, g/kg KA","VPB, g","Toorkiud, g/kg KA","ADF, g/kg KA","NDF, g/kg KA","Proteiin,g KA"]
[45,0.35,null,"- 0…30 lüpsipäev",null,"Silo","Kõrreliste silo hea heintaimikuga kultuurrohumaalt LL 030-12-40",0.03,0.35,10.1,280,79,-6,-6,6,6,3,128,null,30,370,560,1,-1,null,null,null,null,null,null,null,null,null,{"$f":"IFERROR(SUMPRODUCT(I3,'Optimaalne ratsioon'!H3),0)","v":11.749187561778367},{"$f":"IFERROR(SUMPRODUCT(T3,AH3),0)","v":352.475626853351},{"$f":"IFERROR(SUMPRODUCT(P3,AH3),0)","v":70.495125370670195},{"$f":"IFERROR(SUMPRODUCT(Q3,AH3),0)","v":35.247562685335097},{"$f":"IFERROR(SUMPRODUCT(J3,AH3),0)","v":118.66679437396151},{"$f":"IFERROR(SUMPRODUCT(L3,AH3),0)","v":928.18581738049102},{"$f":"IFERROR(SUMPRODUCT(N3,AH3),0)","v":-70.495125370670195},{"$f":"IFERROR(SUMPRODUCT(K3,AH3),0)","v":3289.7725172979426},{"$f":"IFERROR(SUMPRODUCT(U3,AH3),0)","v":4347.1993978579958},{"$f":"IFERROR(SUMPRODUCT(V3,AH3),0)","v":6579.5450345958852},{"$f":"IFERROR(SUMPRODUCT(R3,AH3),0)","v":1503.896007907631}]
[1,0.35,null,"- Laktatsiooni I pool (31…150 lüpsipäev)",null,"Silo","Põldheinasilo (50% ristikut) LL  103-12-40",0.03,0.35,9.8000000000000007,280,79,0,0,9.9,9.9,2.6,135,null,30,354,502,1,-1,null,null,null,null,null,null,null,null,null,{"$f":"IFERROR(SUMPRODUCT(I4,'Optimaalne ratsioon'!H4),0)","v":4.80791185449071},{"$f":"IFERROR(SUMPRODUCT(T4,AH4),0)","v":144.2373556347213},{"$f":"IFERROR(SUMPRODUCT(P4,AH4),0)","v":47.598327359458033},{"$f":"IFERROR(SUMPRODUCT(Q4,AH4),0)","v":12.500570821675847},{"$f":"IFERROR(SUMPRODUCT(J4,AH4),0)","v":47.117536174008961},{"$f":"IFERROR(SUMPRODUCT(L4,AH4),0)","v":379.8250365047661},{"$f":"IFERROR(SUMPRODUCT(N4,AH4),0)","v":0},{"$f":"IFERROR(SUMPRODUCT(K4,AH4),0)","v":1346.2153192573987},{"$f":"IFERROR(SUMPRODUCT(U4,AH4),0)","v":1702.0007964897113},{"$f":"IFERROR(SUMPRODUCT(V4,AH4),0)","v":2413.5717509543365},{"$f":"IFERROR(SUMPRODUCT(R4,AH4),0)","v":649.06810035624585}]
[0.5,0.35,null,"- Laktatsiooni II pool (151… lüpsipäev)",null,"Maisisilo","Maisisilo PK 260-12-70",0.03,0.22,10.4,280,76,-34,-34,4,4,2.2999999999999998,95,null,200,356,575,1,0,null,null,null,null,null,null,null,null,null,{"$f":"IFERROR(SUMPRODUCT(I5,'Optimaalne ratsioon'!H5),0)","v":0},0,0,0,0,0,0,0,0,0,0]
[11,0.35,null,"Kinnisperiood",null,"Maisisilo","VII auk - maisisilo",0.03,0.23,11,223,79,-43,-43,3.9,3.9,2.1,91,null,200,356,575,1,0,null,null,null,null,null,null,null,null,null,{"$f":"IFERROR(SUMPRODUCT(I6,'Optimaalne ratsioon'!H6),0)","v":7.9139781003181693E-15},1.5827956200636339E-12,3.0864514591240863E-14,1.6619354010668156E-14,8.7053759103499867E-14,6.2520426992513541E-13,-3.4030105831368126E-13,1.7648171163709517E-12,2.8173762037132684E-12,4.5505374076829471E-12,7.2017200712895341E-13]
[5,0.35,null,null,null,"Hein","Hein kõrreliste kultuurrohumaa  030-15-60",7.8E-2,0.83,8.4,335,69,-39,-39,5.3,5.3,2.2999999999999998,80,null,null,423,667,null,null,1,null,null,null,null,null,null,null,null,{"$f":"IFERROR(SUMPRODUCT(I7,'Optimaalne ratsioon'!H7),0)","v":0},0,0,0,0,0,0,0,0,0,0]
[0.2,0.3,null,null,null,"Hein","Põldhein (50% ristikut)  LL 103-15-40",7.8E-2,0.83,9.3000000000000007,314,81,-17,-17,9.1999999999999993,9.1999999999999993,2.4,123,null,null,384,569,null,null,1,null,null,null,null,null,null,null,null,{"$f":"IFERROR(SUMPRODUCT(I8,'Optimaalne ratsioon'!H8),0)","v":0.82999999999999974},0,7.6359999999999966,1.9919999999999993,7.7189999999999985,67.229999999999976,-14.109999999999996,260.61999999999989,318.71999999999991,472.26999999999987,102.08999999999996]
[0.25,0.22,null,null,null,"Põhk","Odrapõhk 255-16-0",1.4999999999999999E-2,0.83,6.9,420,56,-48,-48,3.9,3.9,1,47,null,null,499,788,null,null,null,1,null,null,null,null,null,null,null,{"$f":"IFERROR(SUMPRODUCT(I9,'Optimaalne ratsioon'!H9),0)","v":0},0,0,0,0,0,0,0,0,0,0]
[0.2,0.83,null,{"$f":"0.83*(5.640313+0.58204*'Lehm ja ratsiooni tingimused'!D8-0.00236*POWER('Lehm ja ratsiooni tingimused'!D8,2))","v":13.559803790000002},null,"Õlikoogid","Rapsikook  350-28",0.27,0.9,13.4,123,161,139,139,8.3000000000000007,8.3000000000000007,10.5,342,null,120,232,333,null,null,null,null,1,null,null,1,null,null,null,{"$f":"IFERROR(SUMPRODUCT(I10,'Optimaalne ratsioon'!H10),0)","v":4.2033239068777455},504.39886882532949,34.887588427085291,44.134901022216326,56.32454035216179,676.73514900731698,584.26202305600657,517.0088405459627,975.17114639563692,1399.7068609902892,1437.5367761521888]
[0.25,0.83,null,null,null,"Õlikoogid","Sojašrott 310-29",0.46,0.88,14.1,79,196,200,200,3.4,3.4,7.3,500,null,260,94,170,null,null,null,null,1,null,null,null,null,null,null,{"$f":"IFERROR(SUMPRODUCT(I11,'Optimaalne ratsioon'!H11),0)","v":0},0,0,0,0,0,0,0,0,0,0]
[0.5,0.83,null,null,null,"Teraviljad","Oder  255-20/21",0.159,0.86,13,60,103,-44,-44,0.8,0.8,4.0999999999999996,125,null,600,79,221,null,null,null,null,1,0.5,-0.5,null,null,null,null,{"$f":"IFERROR(SUMPRODUCT(I12,'Optimaalne ratsioon'!H12),0)","v":0},0,0,0,0,0,0,0,0,0,0]
[null,0.83,null,null,null,"Teraviljad","Mais 260-20/21",0.2,0.86,14.2,29,121,-100,-100,0.4,0.4,3.1,95,null,700,28,108,null,null,null,null,1,-0.5,-0.5,null,null,null,null,{"$f":"IFERROR(SUMPRODUCT(I13,'Optimaalne ratsioon'!H13),0)","v":2.5615696768533165},1793.0987737973217,1.0246278707413266,7.9408659982452816,36.374289411317093,309.94993089925129,-256.15696768533167,74.285520628746184,71.72395095189286,276.6495251001582,243.34911930106506]
[null,0.82,null,null,null,"Nisu","Nisu 265-20/21",0.17699999999999999,0.86,13.8,25,106,-28,-28,0.6,0.6,3.8,146,null,650,null,null,null,null,null,null,1,-0.5,0.5,null,null,null,null,{"$f":"IFERROR(SUMPRODUCT(I14,'Optimaalne ratsioon'!H14),0)","v":0},0,0,0,0,0,0,0,0,0,0]
[null,0.9,null,null,null,"Mineraalid","Mineraal2",0.05,0.99,null,null,null,null,0,150,150,75,null,null,null,null,null,null,null,null,null,null,null,null,null,null,1,null,{"$f":"IFERROR(SUMPRODUCT(I15,'Optimaalne ratsioon'!H15),0)","v":0.19800000000000001},0,29.700000000000003,14.850000000000001,0,0,0,0,0,0,0]
[null,0.9,null,null,null,"Mineraalid","Lubjakivi",0.01,0.99,null,null,null,null,0,360,360,null,null,null,null,null,null,null,null,null,null,null,null,null,null,null,null,null,{"$f":"IFERROR(SUMPRODUCT(I16,'Optimaalne ratsioon'!H16),0)","v":0},0,0,0,0,0,0,0,0,0,0]
[null,0.86,null,null,null,"Mineraalid","Panto",0.95,0.99,null,null,null,null,0,185,185,40,null,null,null,null,null,null,null,null,null,null,null,null,null,1,null,null,{"$f":"IFERROR(SUMPRODUCT(I17,'Optimaalne ratsioon'!H17),0)","v":0},0,0,0,0,0,0,0,0,0,0]
[null,0.86,null,null,null,"Mineraalid","Mineraal 3",0.72,0.99,null,null,null,null,0,175,175,75,null,null,null,null,null,null,null,null,null,null,null,null,null,null,null,null,{"$f":"IFERROR(SUMPRODUCT(I18,'Optimaalne ratsioon'!H18),0)","v":0},0,0,0,0,0,0,0,0,0,0]
[null,0.86,null,null,null,"Mineraalid","Karbamiid",0.29499999999999998,0.99,null,null,null,2625,2625,null,0,null,2625,null,null,null,null,null,null,null,null,null,null,null,null,null,null,null,{"$f":"IFERROR(SUMPRODUCT(I19,'Optimaalne ratsioon'!H19),0)","v":0},0,0,0,0,0,0,0,0,0,0]
[null,0.65,null,null,null,"Rasv","Kaitstud rasv",1.1299999999999999,0.99,32,null,null,null,0,null,0,null,null,null,null,null,null,null,null,null,null,null,null,null,null,null,null,null,{"$f":"IFERROR(SUMPRODUCT(I20,'Optimaalne ratsioon'!H20),0)","v":0},0,0,0,0,0,0,0,0,0,0]
[null,0.99,null,null,null,"Lisasööt1",null,null,null,null,null,null,null,null,null,null,null,null,null,null,null,null,null,null,null,null,null,null,null,null,null,null,null,{"$f":"IFERROR(SUMPRODUCT(I21,'Optimaalne ratsioon'!H21),0)","v":0},0,0,0,0,0,0,0,0,0,0]
[null,0.99,null,null,null,null,null,null,null,null,null,null,null,null,null,null,null,null,null,null,null,null,null,null,null,null,null,null,null,null,null,null,null,{"$f":"IFERROR(SUMPRODUCT(I22,'Optimaalne ratsioon'!H22),0)","v":0},0,0,0,0,0,0,0,0,0,0]
[null,0.99,null,null,null,null,null,null,null,null,null,null,null,null,null,null,null,null,null,null,null,null,null,null,null,null,null,null,null,null,null,null,null,{"$f":"IFERROR(SUMPRODUCT(I23,'Optimaalne ratsioon'!H23),0)","v":0},0,0,0,0,0,0,0,0,0,0]
[null,0.99,null,null,null,null,null,null,null,null,null,null,null,null,null,null,null,null,null,null,null,null,null,null,null,null,null,null,null,null,null,null,null,{"$f":"IFERROR(SUMPRODUCT(I24,'Optimaalne ratsioon'!H24),0)","v":0},0,0,0,0,0,0,0,0,0,0]
[]
[]
[]
["silode tabeli jaoks","teraviljad + nisu"]
[]
[]
[]
[true,true,50]
[false,true,0]
[true,false,1]
[false,false,0]
[false,false]
[false,false]
[false,false,1]
[false,false,0.5]
[false,false]
[false,false]
[false,false,5]
[false,false]
[false,false]
[null,false,15]
[null,false,0.5]
[null,false,0]
[null,false]
[null,false]
[null,true,0.2]
[null,false]
[null,false]
[null,false,0.2]
[null,false,0.25]
[null,false]
[null,false]
[null,null,0]
[null,null,0]